{"text_format":"3","workbook":"xlsx","n_sheets":2,"sheets":["Aloitus","Vuosikalenteri"],"not_rendered":{"images":4,"defined_names":14},"read":"whole","date_system":"1900"}

{"sheet":"Aloitus","index":0,"n_rows":7,"n_cols":2,"rows_kept":7}
[null,"TIETOJA TÄSTÄ MALLISTA"]
[null,"Tämän mallin avulla voit luoda yksilöllisen pienyrityksen kalenterin mille tahansa vuodelle."]
[null,"Kirjoita yrityksen nimi ja yhteystiedot, ja lisää yrityksen logo."]
[null,"Valitse vuosi ja kirjoita tärkeitä päivämääriä ja tapahtumia."]
[null,"Huomautus: "]
[null,"VUOSIKALENTERIN laskentataulukon sarakkeessa A annetaan lisäohjeita. Tämä teksti on piilotettu tarkoituksella. Jos haluat poistaa tekstin, valitse sarake A ja valitse sitten POISTA. "]
[null,"Jos haluat lisätietoja jostakin taulukosta, paina kyseisessä taulukossa VAIHTO ja sitten F10, valitse TAULUKKO-vaihtoehto ja valitse sitten VAIHTOEHTOINEN TEKSTI."]

{"sheet":"Vuosikalenteri","index":1,"n_rows":55,"n_cols":21,"rows_kept":55,"merged":[[0,2,0,5],[2,2,2,8],[2,10,2,16],[11,2,11,8],[11,10,11,16],[20,2,20,8],[20,10,20,16],[29,2,29,8],[29,10,29,16],[38,2,38,8],[38,10,38,16],[47,2,47,8],[47,10,47,16],[50,20,54,20]]}
["Luo pienyrityksen kalenteri mille tahansa vuodelle tässä laskentataulukossa. Tämän sarakkeen soluissa on hyödyllisiä ohjeita tämän laskentataulukon käyttöön. Vaihda vuosi solussa C1 valitsemalla askellin oikealla olevassa solussa. Tärkeät päivämäärät -otsikko on solussa U1",null,2022,{"$nulls":17},"TÄRKEÄT PÄIVÄMÄÄRÄT"]
["Vihje on oikealla olevassa solussa","Vaihda kalenterivuosi askeltimen avulla."]
["Valitun vuoden kalenteri on soluissa C3–Q55, tammikuun kalenteri soluissa C4–I10 ja helmikuun kalenteri soluissa K4–Q10. Tammikuun otsikko on solussa C3 ja helmikuun solussa K3. Kirjoita tärkeät päivämäärät ja tapahtumat soluihin U3–U42",null,"TAMMIKUU",{"$nulls":7},"HELMIKUU",{"$nulls":9},"1. TAMMIKUUTA"]
["Tammikuun kalenteritaulukko on soluissa C4–I10 ja helmikuun kalenteritaulukko soluissa K4–Q10. Seuraava ohje on solussa A12",null,"MA","TI","KE","TO","PE","LA","SU",null,"MA","TI","KE","TO","PE","LA","SU",{"$nulls":3},"UUDENVUODENPÄIVÄ"]
[null,null,{"$f":"IF(DAY(tammisu1)=1,\"\",IF(AND(YEAR(tammisu1+1)=Kalenterivuosi,MONTH(tammisu1+1)=1),tammisu1+1,\"\"))","v":""},{"$f":"IF(DAY(tammisu1)=1,\"\",IF(AND(YEAR(tammisu1+2)=Kalenterivuosi,MONTH(tammisu1+2)=1),tammisu1+2,\"\"))","v":""},{"$f":"IF(DAY(tammisu1)=1,\"\",IF(AND(YEAR(tammisu1+3)=Kalenterivuosi,MONTH(tammisu1+3)=1),tammisu1+3,\"\"))","v":""},{"$f":"IF(DAY(tammisu1)=1,\"\",IF(AND(YEAR(tammisu1+4)=Kalenterivuosi,MONTH(tammisu1+4)=1),tammisu1+4,\"\"))","v":""},{"$f":"IF(DAY(tammisu1)=1,\"\",IF(AND(YEAR(tammisu1+5)=Kalenterivuosi,MONTH(tammisu1+5)=1),tammisu1+5,\"\"))","v":""},{"$f":"IF(DAY(tammisu1)=1,\"\",IF(AND(YEAR(tammisu1+6)=Kalenterivuosi,MONTH(tammisu1+6)=1),tammisu1+6,\"\"))","v":"2022-01-01"},{"$f":"IF(DAY(tammisu1)=1,IF(AND(YEAR(tammisu1)=Kalenterivuosi,MONTH(tammisu1)=1),tammisu1,\"\"),IF(AND(YEAR(tammisu1+7)=Kalenterivuosi,MONTH(tammisu1+7)=1),tammisu1+7,\"\"))","v":"2022-01-02"},null,{"$f":"IF(DAY(helmisu1)=1,\"\",IF(AND(YEAR(helmisu1+1)=Kalenterivuosi,MONTH(helmisu1+1)=2),helmisu1+1,\"\"))","v":""},{"$f":"IF(DAY(helmisu1)=1,\"\",IF(AND(YEAR(helmisu1+2)=Kalenterivuosi,MONTH(helmisu1+2)=2),helmisu1+2,\"\"))","v":"2022-02-01"},{"$f":"IF(DAY(helmisu1)=1,\"\",IF(AND(YEAR(helmisu1+3)=Kalenterivuosi,MONTH(helmisu1+3)=2),helmisu1+3,\"\"))","v":"2022-02-02"},{"$f":"IF(DAY(helmisu1)=1,\"\",IF(AND(YEAR(helmisu1+4)=Kalenterivuosi,MONTH(helmisu1+4)=2),helmisu1+4,\"\"))","v":"2022-02-03"},{"$f":"IF(DAY(helmisu1)=1,\"\",IF(AND(YEAR(helmisu1+5)=Kalenterivuosi,MONTH(helmisu1+5)=2),helmisu1+5,\"\"))","v":"2022-02-04"},{"$f":"IF(DAY(helmisu1)=1,\"\",IF(AND(YEAR(helmisu1+6)=Kalenterivuosi,MONTH(helmisu1+6)=2),helmisu1+6,\"\"))","v":"2022-02-05"},{"$f":"IF(DAY(helmisu1)=1,IF(AND(YEAR(helmisu1)=Kalenterivuosi,MONTH(helmisu1)=2),helmisu1,\"\"),IF(AND(YEAR(helmisu1+7)=Kalenterivuosi,MONTH(helmisu1+7)=2),helmisu1+7,\"\"))","v":"2022-02-06"}]
[null,null,{"$f":"IF(DAY(tammisu1)=1,IF(AND(YEAR(tammisu1+1)=Kalenterivuosi,MONTH(tammisu1+1)=1),tammisu1+1,\"\"),IF(AND(YEAR(tammisu1+8)=Kalenterivuosi,MONTH(tammisu1+8)=1),tammisu1+8,\"\"))","v":"2022-01-03"},{"$f":"IF(DAY(tammisu1)=1,IF(AND(YEAR(tammisu1+2)=Kalenterivuosi,MONTH(tammisu1+2)=1),tammisu1+2,\"\"),IF(AND(YEAR(tammisu1+9)=Kalenterivuosi,MONTH(tammisu1+9)=1),tammisu1+9,\"\"))","v":"2022-01-04"},{"$f":"IF(DAY(tammisu1)=1,IF(AND(YEAR(tammisu1+3)=Kalenterivuosi,MONTH(tammisu1+3)=1),tammisu1+3,\"\"),IF(AND(YEAR(tammisu1+10)=Kalenterivuosi,MONTH(tammisu1+10)=1),tammisu1+10,\"\"))","v":"2022-01-05"},{"$f":"IF(DAY(tammisu1)=1,IF(AND(YEAR(tammisu1+4)=Kalenterivuosi,MONTH(tammisu1+4)=1),tammisu1+4,\"\"),IF(AND(YEAR(tammisu1+11)=Kalenterivuosi,MONTH(tammisu1+11)=1),tammisu1+11,\"\"))","v":"2022-01-06"},{"$f":"IF(DAY(tammisu1)=1,IF(AND(YEAR(tammisu1+5)=Kalenterivuosi,MONTH(tammisu1+5)=1),tammisu1+5,\"\"),IF(AND(YEAR(tammisu1+12)=Kalenterivuosi,MONTH(tammisu1+12)=1),tammisu1+12,\"\"))","v":"2022-01-07"},{"$f":"IF(DAY(tammisu1)=1,IF(AND(YEAR(tammisu1+6)=Kalenterivuosi,MONTH(tammisu1+6)=1),tammisu1+6,\"\"),IF(AND(YEAR(tammisu1+13)=Kalenterivuosi,MONTH(tammisu1+13)=1),tammisu1+13,\"\"))","v":"2022-01-08"},{"$f":"IF(DAY(tammisu1)=1,IF(AND(YEAR(tammisu1+7)=Kalenterivuosi,MONTH(tammisu1+7)=1),tammisu1+7,\"\"),IF(AND(YEAR(tammisu1+14)=Kalenterivuosi,MONTH(tammisu1+14)=1),tammisu1+14,\"\"))","v":"2022-01-09"},null,{"$f":"IF(DAY(helmisu1)=1,IF(AND(YEAR(helmisu1+1)=Kalenterivuosi,MONTH(helmisu1+1)=2),helmisu1+1,\"\"),IF(AND(YEAR(helmisu1+8)=Kalenterivuosi,MONTH(helmisu1+8)=2),helmisu1+8,\"\"))","v":"2022-02-07"},{"$f":"IF(DAY(helmisu1)=1,IF(AND(YEAR(helmisu1+2)=Kalenterivuosi,MONTH(helmisu1+2)=2),helmisu1+2,\"\"),IF(AND(YEAR(helmisu1+9)=Kalenterivuosi,MONTH(helmisu1+9)=2),helmisu1+9,\"\"))","v":"2022-02-08"},{"$f":"IF(DAY(helmisu1)=1,IF(AND(YEAR(helmisu1+3)=Kalenterivuosi,MONTH(helmisu1+3)=2),helmisu1+3,\"\"),IF(AND(YEAR(helmisu1+10)=Kalenterivuosi,MONTH(helmisu1+10)=2),helmisu1+10,\"\"))","v":"2022-02-09"},{"$f":"IF(DAY(helmisu1)=1,IF(AND(YEAR(helmisu1+4)=Kalenterivuosi,MONTH(helmisu1+4)=2),helmisu1+4,\"\"),IF(AND(YEAR(helmisu1+11)=Kalenterivuosi,MONTH(helmisu1+11)=2),helmisu1+11,\"\"))","v":"2022-02-10"},{"$f":"IF(DAY(helmisu1)=1,IF(AND(YEAR(helmisu1+5)=Kalenterivuosi,MONTH(helmisu1+5)=2),helmisu1+5,\"\"),IF(AND(YEAR(helmisu1+12)=Kalenterivuosi,MONTH(helmisu1+12)=2),helmisu1+12,\"\"))","v":"2022-02-11"},{"$f":"IF(DAY(helmisu1)=1,IF(AND(YEAR(helmisu1+6)=Kalenterivuosi,MONTH(helmisu1+6)=2),helmisu1+6,\"\"),IF(AND(YEAR(helmisu1+13)=Kalenterivuosi,MONTH(helmisu1+13)=2),helmisu1+13,\"\"))","v":"2022-02-12"},{"$f":"IF(DAY(helmisu1)=1,IF(AND(YEAR(helmisu1+7)=Kalenterivuosi,MONTH(helmisu1+7)=2),helmisu1+7,\"\"),IF(AND(YEAR(helmisu1+14)=Kalenterivuosi,MONTH(helmisu1+14)=2),helmisu1+14,\"\"))","v":"2022-02-13"},{"$nulls":3},"14. HELMIKUUTA"]
[null,null,{"$f":"IF(DAY(tammisu1)=1,IF(AND(YEAR(tammisu1+8)=Kalenterivuosi,MONTH(tammisu1+8)=1),tammisu1+8,\"\"),IF(AND(YEAR(tammisu1+15)=Kalenterivuosi,MONTH(tammisu1+15)=1),tammisu1+15,\"\"))","v":"2022-01-10"},{"$f":"IF(DAY(tammisu1)=1,IF(AND(YEAR(tammisu1+9)=Kalenterivuosi,MONTH(tammisu1+9)=1),tammisu1+9,\"\"),IF(AND(YEAR(tammisu1+16)=Kalenterivuosi,MONTH(tammisu1+16)=1),tammisu1+16,\"\"))","v":"2022-01-11"},{"$f":"IF(DAY(tammisu1)=1,IF(AND(YEAR(tammisu1+10)=Kalenterivuosi,MONTH(tammisu1+10)=1),tammisu1+10,\"\"),IF(AND(YEAR(tammisu1+17)=Kalenterivuosi,MONTH(tammisu1+17)=1),tammisu1+17,\"\"))","v":"2022-01-12"},{"$f":"IF(DAY(tammisu1)=1,IF(AND(YEAR(tammisu1+11)=Kalenterivuosi,MONTH(tammisu1+11)=1),tammisu1+11,\"\"),IF(AND(YEAR(tammisu1+18)=Kalenterivuosi,MONTH(tammisu1+18)=1),tammisu1+18,\"\"))","v":"2022-01-13"},{"$f":"IF(DAY(tammisu1)=1,IF(AND(YEAR(tammisu1+12)=Kalenterivuosi,MONTH(tammisu1+12)=1),tammisu1+12,\"\"),IF(AND(YEAR(tammisu1+19)=Kalenterivuosi,MONTH(tammisu1+19)=1),tammisu1+19,\"\"))","v":"2022-01-14"},{"$f":"IF(DAY(tammisu1)=1,IF(AND(YEAR(tammisu1+13)=Kalenterivuosi,MONTH(tammisu1+13)=1),tammisu1+13,\"\"),IF(AND(YEAR(tammisu1+20)=Kalenterivuosi,MONTH(tammisu1+20)=1),tammisu1+20,\"\"))","v":"2022-01-15"},{"$f":"IF(DAY(tammisu1)=1,IF(AND(YEAR(tammisu1+14)=Kalenterivuosi,MONTH(tammisu1+14)=1),tammisu1+14,\"\"),IF(AND(YEAR(tammisu1+21)=Kalenterivuosi,MONTH(tammisu1+21)=1),tammisu1+21,\"\"))","v":"2022-01-16"},null,{"$f":"IF(DAY(helmisu1)=1,IF(AND(YEAR(helmisu1+8)=Kalenterivuosi,MONTH(helmisu1+8)=2),helmisu1+8,\"\"),IF(AND(YEAR(helmisu1+15)=Kalenterivuosi,MONTH(helmisu1+15)=2),helmisu1+15,\"\"))","v":"2022-02-14"},{"$f":"IF(DAY(helmisu1)=1,IF(AND(YEAR(helmisu1+9)=Kalenterivuosi,MONTH(helmisu1+9)=2),helmisu1+9,\"\"),IF(AND(YEAR(helmisu1+16)=Kalenterivuosi,MONTH(helmisu1+16)=2),helmisu1+16,\"\"))","v":"2022-02-15"},{"$f":"IF(DAY(helmisu1)=1,IF(AND(YEAR(helmisu1+10)=Kalenterivuosi,MONTH(helmisu1+10)=2),helmisu1+10,\"\"),IF(AND(YEAR(helmisu1+17)=Kalenterivuosi,MONTH(helmisu1+17)=2),helmisu1+17,\"\"))","v":"2022-02-16"},{"$f":"IF(DAY(helmisu1)=1,IF(AND(YEAR(helmisu1+11)=Kalenterivuosi,MONTH(helmisu1+11)=2),helmisu1+11,\"\"),IF(AND(YEAR(helmisu1+18)=Kalenterivuosi,MONTH(helmisu1+18)=2),helmisu1+18,\"\"))","v":"2022-02-17"},{"$f":"IF(DAY(helmisu1)=1,IF(AND(YEAR(helmisu1+12)=Kalenterivuosi,MONTH(helmisu1+12)=2),helmisu1+12,\"\"),IF(AND(YEAR(helmisu1+19)=Kalenterivuosi,MONTH(helmisu1+19)=2),helmisu1+19,\"\"))","v":"2022-02-18"},{"$f":"IF(DAY(helmisu1)=1,IF(AND(YEAR(helmisu1+13)=Kalenterivuosi,MONTH(helmisu1+13)=2),helmisu1+13,\"\"),IF(AND(YEAR(helmisu1+20)=Kalenterivuosi,MONTH(helmisu1+20)=2),helmisu1+20,\"\"))","v":"2022-02-19"},{"$f":"IF(DAY(helmisu1)=1,IF(AND(YEAR(helmisu1+14)=Kalenterivuosi,MONTH(helmisu1+14)=2),helmisu1+14,\"\"),IF(AND(YEAR(helmisu1+21)=Kalenterivuosi,MONTH(helmisu1+21)=2),helmisu1+21,\"\"))","v":"2022-02-20"},{"$nulls":3},"YSTÄVÄNPÄIVÄ"]
[null,null,{"$f":"IF(DAY(tammisu1)=1,IF(AND(YEAR(tammisu1+15)=Kalenterivuosi,MONTH(tammisu1+15)=1),tammisu1+15,\"\"),IF(AND(YEAR(tammisu1+22)=Kalenterivuosi,MONTH(tammisu1+22)=1),tammisu1+22,\"\"))","v":"2022-01-17"},{"$f":"IF(DAY(tammisu1)=1,IF(AND(YEAR(tammisu1+16)=Kalenterivuosi,MONTH(tammisu1+16)=1),tammisu1+16,\"\"),IF(AND(YEAR(tammisu1+23)=Kalenterivuosi,MONTH(tammisu1+23)=1),tammisu1+23,\"\"))","v":"2022-01-18"},{"$f":"IF(DAY(tammisu1)=1,IF(AND(YEAR(tammisu1+17)=Kalenterivuosi,MONTH(tammisu1+17)=1),tammisu1+17,\"\"),IF(AND(YEAR(tammisu1+24)=Kalenterivuosi,MONTH(tammisu1+24)=1),tammisu1+24,\"\"))","v":"2022-01-19"},{"$f":"IF(DAY(tammisu1)=1,IF(AND(YEAR(tammisu1+18)=Kalenterivuosi,MONTH(tammisu1+18)=1),tammisu1+18,\"\"),IF(AND(YEAR(tammisu1+25)=Kalenterivuosi,MONTH(tammisu1+25)=1),tammisu1+25,\"\"))","v":"2022-01-20"},{"$f":"IF(DAY(tammisu1)=1,IF(AND(YEAR(tammisu1+19)=Kalenterivuosi,MONTH(tammisu1+19)=1),tammisu1+19,\"\"),IF(AND(YEAR(tammisu1+26)=Kalenterivuosi,MONTH(tammisu1+26)=1),tammisu1+26,\"\"))","v":"2022-01-21"},{"$f":"IF(DAY(tammisu1)=1,IF(AND(YEAR(tammisu1+20)=Kalenterivuosi,MONTH(tammisu1+20)=1),tammisu1+20,\"\"),IF(AND(YEAR(tammisu1+27)=Kalenterivuosi,MONTH(tammisu1+27)=1),tammisu1+27,\"\"))","v":"2022-01-22"},{"$f":"IF(DAY(tammisu1)=1,IF(AND(YEAR(tammisu1+21)=Kalenterivuosi,MONTH(tammisu1+21)=1),tammisu1+21,\"\"),IF(AND(YEAR(tammisu1+28)=Kalenterivuosi,MONTH(tammisu1+28)=1),tammisu1+28,\"\"))","v":"2022-01-23"},null,{"$f":"IF(DAY(helmisu1)=1,IF(AND(YEAR(helmisu1+15)=Kalenterivuosi,MONTH(helmisu1+15)=2),helmisu1+15,\"\"),IF(AND(YEAR(helmisu1+22)=Kalenterivuosi,MONTH(helmisu1+22)=2),helmisu1+22,\"\"))","v":"2022-02-21"},{"$f":"IF(DAY(helmisu1)=1,IF(AND(YEAR(helmisu1+16)=Kalenterivuosi,MONTH(helmisu1+16)=2),helmisu1+16,\"\"),IF(AND(YEAR(helmisu1+23)=Kalenterivuosi,MONTH(helmisu1+23)=2),helmisu1+23,\"\"))","v":"2022-02-22"},{"$f":"IF(DAY(helmisu1)=1,IF(AND(YEAR(helmisu1+17)=Kalenterivuosi,MONTH(helmisu1+17)=2),helmisu1+17,\"\"),IF(AND(YEAR(helmisu1+24)=Kalenterivuosi,MONTH(helmisu1+24)=2),helmisu1+24,\"\"))","v":"2022-02-23"},{"$f":"IF(DAY(helmisu1)=1,IF(AND(YEAR(helmisu1+18)=Kalenterivuosi,MONTH(helmisu1+18)=2),helmisu1+18,\"\"),IF(AND(YEAR(helmisu1+25)=Kalenterivuosi,MONTH(helmisu1+25)=2),helmisu1+25,\"\"))","v":"2022-02-24"},{"$f":"IF(DAY(helmisu1)=1,IF(AND(YEAR(helmisu1+19)=Kalenterivuosi,MONTH(helmisu1+19)=2),helmisu1+19,\"\"),IF(AND(YEAR(helmisu1+26)=Kalenterivuosi,MONTH(helmisu1+26)=2),helmisu1+26,\"\"))","v":"2022-02-25"},{"$f":"IF(DAY(helmisu1)=1,IF(AND(YEAR(helmisu1+20)=Kalenterivuosi,MONTH(helmisu1+20)=2),helmisu1+20,\"\"),IF(AND(YEAR(helmisu1+27)=Kalenterivuosi,MONTH(helmisu1+27)=2),helmisu1+27,\"\"))","v":"2022-02-26"},{"$f":"IF(DAY(helmisu1)=1,IF(AND(YEAR(helmisu1+21)=Kalenterivuosi,MONTH(helmisu1+21)=2),helmisu1+21,\"\"),IF(AND(YEAR(helmisu1+28)=Kalenterivuosi,MONTH(helmisu1+28)=2),helmisu1+28,\"\"))","v":"2022-02-27"}]
[null,null,{"$f":"IF(DAY(tammisu1)=1,IF(AND(YEAR(tammisu1+22)=Kalenterivuosi,MONTH(tammisu1+22)=1),tammisu1+22,\"\"),IF(AND(YEAR(tammisu1+29)=Kalenterivuosi,MONTH(tammisu1+29)=1),tammisu1+29,\"\"))","v":"2022-01-24"},{"$f":"IF(DAY(tammisu1)=1,IF(AND(YEAR(tammisu1+23)=Kalenterivuosi,MONTH(tammisu1+23)=1),tammisu1+23,\"\"),IF(AND(YEAR(tammisu1+30)=Kalenterivuosi,MONTH(tammisu1+30)=1),tammisu1+30,\"\"))","v":"2022-01-25"},{"$f":"IF(DAY(tammisu1)=1,IF(AND(YEAR(tammisu1+24)=Kalenterivuosi,MONTH(tammisu1+24)=1),tammisu1+24,\"\"),IF(AND(YEAR(tammisu1+31)=Kalenterivuosi,MONTH(tammisu1+31)=1),tammisu1+31,\"\"))","v":"2022-01-26"},{"$f":"IF(DAY(tammisu1)=1,IF(AND(YEAR(tammisu1+25)=Kalenterivuosi,MONTH(tammisu1+25)=1),tammisu1+25,\"\"),IF(AND(YEAR(tammisu1+32)=Kalenterivuosi,MONTH(tammisu1+32)=1),tammisu1+32,\"\"))","v":"2022-01-27"},{"$f":"IF(DAY(tammisu1)=1,IF(AND(YEAR(tammisu1+26)=Kalenterivuosi,MONTH(tammisu1+26)=1),tammisu1+26,\"\"),IF(AND(YEAR(tammisu1+33)=Kalenterivuosi,MONTH(tammisu1+33)=1),tammisu1+33,\"\"))","v":"2022-01-28"},{"$f":"IF(DAY(tammisu1)=1,IF(AND(YEAR(tammisu1+27)=Kalenterivuosi,MONTH(tammisu1+27)=1),tammisu1+27,\"\"),IF(AND(YEAR(tammisu1+34)=Kalenterivuosi,MONTH(tammisu1+34)=1),tammisu1+34,\"\"))","v":"2022-01-29"},{"$f":"IF(DAY(tammisu1)=1,IF(AND(YEAR(tammisu1+28)=Kalenterivuosi,MONTH(tammisu1+28)=1),tammisu1+28,\"\"),IF(AND(YEAR(tammisu1+35)=Kalenterivuosi,MONTH(tammisu1+35)=1),tammisu1+35,\"\"))","v":"2022-01-30"},null,{"$f":"IF(DAY(helmisu1)=1,IF(AND(YEAR(helmisu1+22)=Kalenterivuosi,MONTH(helmisu1+22)=2),helmisu1+22,\"\"),IF(AND(YEAR(helmisu1+29)=Kalenterivuosi,MONTH(helmisu1+29)=2),helmisu1+29,\"\"))","v":"2022-02-28"},{"$f":"IF(DAY(helmisu1)=1,IF(AND(YEAR(helmisu1+23)=Kalenterivuosi,MONTH(helmisu1+23)=2),helmisu1+23,\"\"),IF(AND(YEAR(helmisu1+30)=Kalenterivuosi,MONTH(helmisu1+30)=2),helmisu1+30,\"\"))","v":""},{"$f":"IF(DAY(helmisu1)=1,IF(AND(YEAR(helmisu1+24)=Kalenterivuosi,MONTH(helmisu1+24)=2),helmisu1+24,\"\"),IF(AND(YEAR(helmisu1+31)=Kalenterivuosi,MONTH(helmisu1+31)=2),helmisu1+31,\"\"))","v":""},{"$f":"IF(DAY(helmisu1)=1,IF(AND(YEAR(helmisu1+25)=Kalenterivuosi,MONTH(helmisu1+25)=2),helmisu1+25,\"\"),IF(AND(YEAR(helmisu1+32)=Kalenterivuosi,MONTH(helmisu1+32)=2),helmisu1+32,\"\"))","v":""},{"$f":"IF(DAY(helmisu1)=1,IF(AND(YEAR(helmisu1+26)=Kalenterivuosi,MONTH(helmisu1+26)=2),helmisu1+26,\"\"),IF(AND(YEAR(helmisu1+33)=Kalenterivuosi,MONTH(helmisu1+33)=2),helmisu1+33,\"\"))","v":""},{"$f":"IF(DAY(helmisu1)=1,IF(AND(YEAR(helmisu1+27)=Kalenterivuosi,MONTH(helmisu1+27)=2),helmisu1+27,\"\"),IF(AND(YEAR(helmisu1+34)=Kalenterivuosi,MONTH(helmisu1+34)=2),helmisu1+34,\"\"))","v":""},{"$f":"IF(DAY(helmisu1)=1,IF(AND(YEAR(helmisu1+28)=Kalenterivuosi,MONTH(helmisu1+28)=2),helmisu1+28,\"\"),IF(AND(YEAR(helmisu1+35)=Kalenterivuosi,MONTH(helmisu1+35)=2),helmisu1+35,\"\"))","v":""},{"$nulls":3},"22. HELMIKUUTA"]
[null,null,{"$f":"IF(DAY(tammisu1)=1,IF(AND(YEAR(tammisu1+29)=Kalenterivuosi,MONTH(tammisu1+29)=1),tammisu1+29,\"\"),IF(AND(YEAR(tammisu1+36)=Kalenterivuosi,MONTH(tammisu1+36)=1),tammisu1+36,\"\"))","v":"2022-01-31"},{"$f":"IF(DAY(tammisu1)=1,IF(AND(YEAR(tammisu1+30)=Kalenterivuosi,MONTH(tammisu1+30)=1),tammisu1+30,\"\"),IF(AND(YEAR(tammisu1+37)=Kalenterivuosi,MONTH(tammisu1+37)=1),tammisu1+37,\"\"))","v":""},{"$f":"IF(DAY(tammisu1)=1,IF(AND(YEAR(tammisu1+31)=Kalenterivuosi,MONTH(tammisu1+31)=1),tammisu1+31,\"\"),IF(AND(YEAR(tammisu1+38)=Kalenterivuosi,MONTH(tammisu1+38)=1),tammisu1+38,\"\"))","v":""},{"$f":"IF(DAY(tammisu1)=1,IF(AND(YEAR(tammisu1+32)=Kalenterivuosi,MONTH(tammisu1+32)=1),tammisu1+32,\"\"),IF(AND(YEAR(tammisu1+39)=Kalenterivuosi,MONTH(tammisu1+39)=1),tammisu1+39,\"\"))","v":""},{"$f":"IF(DAY(tammisu1)=1,IF(AND(YEAR(tammisu1+33)=Kalenterivuosi,MONTH(tammisu1+33)=1),tammisu1+33,\"\"),IF(AND(YEAR(tammisu1+40)=Kalenterivuosi,MONTH(tammisu1+40)=1),tammisu1+40,\"\"))","v":""},{"$f":"IF(DAY(tammisu1)=1,IF(AND(YEAR(tammisu1+34)=Kalenterivuosi,MONTH(tammisu1+34)=1),tammisu1+34,\"\"),IF(AND(YEAR(tammisu1+41)=Kalenterivuosi,MONTH(tammisu1+41)=1),tammisu1+41,\"\"))","v":""},{"$f":"IF(DAY(tammisu1)=1,IF(AND(YEAR(tammisu1+35)=Kalenterivuosi,MONTH(tammisu1+35)=1),tammisu1+35,\"\"),IF(AND(YEAR(tammisu1+42)=Kalenterivuosi,MONTH(tammisu1+42)=1),tammisu1+42,\"\"))","v":""},null,{"$f":"IF(DAY(helmisu1)=1,IF(AND(YEAR(helmisu1+29)=Kalenterivuosi,MONTH(helmisu1+29)=2),helmisu1+29,\"\"),IF(AND(YEAR(helmisu1+36)=Kalenterivuosi,MONTH(helmisu1+36)=2),helmisu1+36,\"\"))","v":""},{"$f":"IF(DAY(helmisu1)=1,IF(AND(YEAR(helmisu1+30)=Kalenterivuosi,MONTH(helmisu1+30)=2),helmisu1+30,\"\"),IF(AND(YEAR(helmisu1+37)=Kalenterivuosi,MONTH(helmisu1+37)=2),helmisu1+37,\"\"))","v":""},{"$f":"IF(DAY(helmisu1)=1,IF(AND(YEAR(helmisu1+31)=Kalenterivuosi,MONTH(helmisu1+31)=2),helmisu1+31,\"\"),IF(AND(YEAR(helmisu1+38)=Kalenterivuosi,MONTH(helmisu1+38)=2),helmisu1+38,\"\"))","v":""},{"$f":"IF(DAY(helmisu1)=1,IF(AND(YEAR(helmisu1+32)=Kalenterivuosi,MONTH(helmisu1+32)=2),helmisu1+32,\"\"),IF(AND(YEAR(helmisu1+39)=Kalenterivuosi,MONTH(helmisu1+39)=2),helmisu1+39,\"\"))","v":""},{"$f":"IF(DAY(helmisu1)=1,IF(AND(YEAR(helmisu1+33)=Kalenterivuosi,MONTH(helmisu1+33)=2),helmisu1+33,\"\"),IF(AND(YEAR(helmisu1+40)=Kalenterivuosi,MONTH(helmisu1+40)=2),helmisu1+40,\"\"))","v":""},{"$f":"IF(DAY(helmisu1)=1,IF(AND(YEAR(helmisu1+34)=Kalenterivuosi,MONTH(helmisu1+34)=2),helmisu1+34,\"\"),IF(AND(YEAR(helmisu1+41)=Kalenterivuosi,MONTH(helmisu1+41)=2),helmisu1+41,\"\"))","v":""},{"$f":"IF(DAY(helmisu1)=1,IF(AND(YEAR(helmisu1+35)=Kalenterivuosi,MONTH(helmisu1+35)=2),helmisu1+35,\"\"),IF(AND(YEAR(helmisu1+42)=Kalenterivuosi,MONTH(helmisu1+42)=2),helmisu1+42,\"\"))","v":""},{"$nulls":3},"AVOIMIEN OVIEN PÄIVÄ"]
[]
["Maaliskuun otsikko on solussa C12 ja huhtikuun solussa K12",null,"MAALISKUU",{"$nulls":7},"HUHTIKUU"]
["Maaliskuun kalenteritaulukko on soluissa C13–I19 ja huhtikuun kalenteritaulukko soluissa K13–Q19. Seuraava ohje on solussa A21",null,"MA","TI","KE","TO","PE","LA","SU",null,"MA","TI","KE","TO","PE","LA","SU"]
[null,null,{"$f":"IF(DAY(maalissu1)=1,\"\",IF(AND(YEAR(maalissu1+1)=Kalenterivuosi,MONTH(maalissu1+1)=3),maalissu1+1,\"\"))","v":""},{"$f":"IF(DAY(maalissu1)=1,\"\",IF(AND(YEAR(maalissu1+2)=Kalenterivuosi,MONTH(maalissu1+2)=3),maalissu1+2,\"\"))","v":"2022-03-01"},{"$f":"IF(DAY(maalissu1)=1,\"\",IF(AND(YEAR(maalissu1+3)=Kalenterivuosi,MONTH(maalissu1+3)=3),maalissu1+3,\"\"))","v":"2022-03-02"},{"$f":"IF(DAY(maalissu1)=1,\"\",IF(AND(YEAR(maalissu1+4)=Kalenterivuosi,MONTH(maalissu1+4)=3),maalissu1+4,\"\"))","v":"2022-03-03"},{"$f":"IF(DAY(maalissu1)=1,\"\",IF(AND(YEAR(maalissu1+5)=Kalenterivuosi,MONTH(maalissu1+5)=3),maalissu1+5,\"\"))","v":"2022-03-04"},{"$f":"IF(DAY(maalissu1)=1,\"\",IF(AND(YEAR(maalissu1+6)=Kalenterivuosi,MONTH(maalissu1+6)=3),maalissu1+6,\"\"))","v":"2022-03-05"},{"$f":"IF(DAY(maalissu1)=1,IF(AND(YEAR(maalissu1)=Kalenterivuosi,MONTH(maalissu1)=3),maalissu1,\"\"),IF(AND(YEAR(maalissu1+7)=Kalenterivuosi,MONTH(maalissu1+7)=3),maalissu1+7,\"\"))","v":"2022-03-06"},null,{"$f":"IF(DAY(huhtisu1)=1,\"\",IF(AND(YEAR(huhtisu1+1)=Kalenterivuosi,MONTH(huhtisu1+1)=4),huhtisu1+1,\"\"))","v":""},{"$f":"IF(DAY(huhtisu1)=1,\"\",IF(AND(YEAR(huhtisu1+2)=Kalenterivuosi,MONTH(huhtisu1+2)=4),huhtisu1+2,\"\"))","v":""},{"$f":"IF(DAY(huhtisu1)=1,\"\",IF(AND(YEAR(huhtisu1+3)=Kalenterivuosi,MONTH(huhtisu1+3)=4),huhtisu1+3,\"\"))","v":""},{"$f":"IF(DAY(huhtisu1)=1,\"\",IF(AND(YEAR(huhtisu1+4)=Kalenterivuosi,MONTH(huhtisu1+4)=4),huhtisu1+4,\"\"))","v":""},{"$f":"IF(DAY(huhtisu1)=1,\"\",IF(AND(YEAR(huhtisu1+5)=Kalenterivuosi,MONTH(huhtisu1+5)=4),huhtisu1+5,\"\"))","v":"2022-04-01"},{"$f":"IF(DAY(huhtisu1)=1,\"\",IF(AND(YEAR(huhtisu1+6)=Kalenterivuosi,MONTH(huhtisu1+6)=4),huhtisu1+6,\"\"))","v":"2022-04-02"},{"$f":"IF(DAY(huhtisu1)=1,IF(AND(YEAR(huhtisu1)=Kalenterivuosi,MONTH(huhtisu1)=4),huhtisu1,\"\"),IF(AND(YEAR(huhtisu1+7)=Kalenterivuosi,MONTH(huhtisu1+7)=4),huhtisu1+7,\"\"))","v":"2022-04-03"}]
[null,null,{"$f":"IF(DAY(maalissu1)=1,IF(AND(YEAR(maalissu1+1)=Kalenterivuosi,MONTH(maalissu1+1)=3),maalissu1+1,\"\"),IF(AND(YEAR(maalissu1+8)=Kalenterivuosi,MONTH(maalissu1+8)=3),maalissu1+8,\"\"))","v":"2022-03-07"},{"$f":"IF(DAY(maalissu1)=1,IF(AND(YEAR(maalissu1+2)=Kalenterivuosi,MONTH(maalissu1+2)=3),maalissu1+2,\"\"),IF(AND(YEAR(maalissu1+9)=Kalenterivuosi,MONTH(maalissu1+9)=3),maalissu1+9,\"\"))","v":"2022-03-08"},{"$f":"IF(DAY(maalissu1)=1,IF(AND(YEAR(maalissu1+3)=Kalenterivuosi,MONTH(maalissu1+3)=3),maalissu1+3,\"\"),IF(AND(YEAR(maalissu1+10)=Kalenterivuosi,MONTH(maalissu1+10)=3),maalissu1+10,\"\"))","v":"2022-03-09"},{"$f":"IF(DAY(maalissu1)=1,IF(AND(YEAR(maalissu1+4)=Kalenterivuosi,MONTH(maalissu1+4)=3),maalissu1+4,\"\"),IF(AND(YEAR(maalissu1+11)=Kalenterivuosi,MONTH(maalissu1+11)=3),maalissu1+11,\"\"))","v":"2022-03-10"},{"$f":"IF(DAY(maalissu1)=1,IF(AND(YEAR(maalissu1+5)=Kalenterivuosi,MONTH(maalissu1+5)=3),maalissu1+5,\"\"),IF(AND(YEAR(maalissu1+12)=Kalenterivuosi,MONTH(maalissu1+12)=3),maalissu1+12,\"\"))","v":"2022-03-11"},{"$f":"IF(DAY(maalissu1)=1,IF(AND(YEAR(maalissu1+6)=Kalenterivuosi,MONTH(maalissu1+6)=3),maalissu1+6,\"\"),IF(AND(YEAR(maalissu1+13)=Kalenterivuosi,MONTH(maalissu1+13)=3),maalissu1+13,\"\"))","v":"2022-03-12"},{"$f":"IF(DAY(maalissu1)=1,IF(AND(YEAR(maalissu1+7)=Kalenterivuosi,MONTH(maalissu1+7)=3),maalissu1+7,\"\"),IF(AND(YEAR(maalissu1+14)=Kalenterivuosi,MONTH(maalissu1+14)=3),maalissu1+14,\"\"))","v":"2022-03-13"},null,{"$f":"IF(DAY(huhtisu1)=1,IF(AND(YEAR(huhtisu1+1)=Kalenterivuosi,MONTH(huhtisu1+1)=4),huhtisu1+1,\"\"),IF(AND(YEAR(huhtisu1+8)=Kalenterivuosi,MONTH(huhtisu1+8)=4),huhtisu1+8,\"\"))","v":"2022-04-04"},{"$f":"IF(DAY(huhtisu1)=1,IF(AND(YEAR(huhtisu1+2)=Kalenterivuosi,MONTH(huhtisu1+2)=4),huhtisu1+2,\"\"),IF(AND(YEAR(huhtisu1+9)=Kalenterivuosi,MONTH(huhtisu1+9)=4),huhtisu1+9,\"\"))","v":"2022-04-05"},{"$f":"IF(DAY(huhtisu1)=1,IF(AND(YEAR(huhtisu1+3)=Kalenterivuosi,MONTH(huhtisu1+3)=4),huhtisu1+3,\"\"),IF(AND(YEAR(huhtisu1+10)=Kalenterivuosi,MONTH(huhtisu1+10)=4),huhtisu1+10,\"\"))","v":"2022-04-06"},{"$f":"IF(DAY(huhtisu1)=1,IF(AND(YEAR(huhtisu1+4)=Kalenterivuosi,MONTH(huhtisu1+4)=4),huhtisu1+4,\"\"),IF(AND(YEAR(huhtisu1+11)=Kalenterivuosi,MONTH(huhtisu1+11)=4),huhtisu1+11,\"\"))","v":"2022-04-07"},{"$f":"IF(DAY(huhtisu1)=1,IF(AND(YEAR(huhtisu1+5)=Kalenterivuosi,MONTH(huhtisu1+5)=4),huhtisu1+5,\"\"),IF(AND(YEAR(huhtisu1+12)=Kalenterivuosi,MONTH(huhtisu1+12)=4),huhtisu1+12,\"\"))","v":"2022-04-08"},{"$f":"IF(DAY(huhtisu1)=1,IF(AND(YEAR(huhtisu1+6)=Kalenterivuosi,MONTH(huhtisu1+6)=4),huhtisu1+6,\"\"),IF(AND(YEAR(huhtisu1+13)=Kalenterivuosi,MONTH(huhtisu1+13)=4),huhtisu1+13,\"\"))","v":"2022-04-09"},{"$f":"IF(DAY(huhtisu1)=1,IF(AND(YEAR(huhtisu1+7)=Kalenterivuosi,MONTH(huhtisu1+7)=4),huhtisu1+7,\"\"),IF(AND(YEAR(huhtisu1+14)=Kalenterivuosi,MONTH(huhtisu1+14)=4),huhtisu1+14,\"\"))","v":"2022-04-10"}]
[null,null,{"$f":"IF(DAY(maalissu1)=1,IF(AND(YEAR(maalissu1+8)=Kalenterivuosi,MONTH(maalissu1+8)=3),maalissu1+8,\"\"),IF(AND(YEAR(maalissu1+15)=Kalenterivuosi,MONTH(maalissu1+15)=3),maalissu1+15,\"\"))","v":"2022-03-14"},{"$f":"IF(DAY(maalissu1)=1,IF(AND(YEAR(maalissu1+9)=Kalenterivuosi,MONTH(maalissu1+9)=3),maalissu1+9,\"\"),IF(AND(YEAR(maalissu1+16)=Kalenterivuosi,MONTH(maalissu1+16)=3),maalissu1+16,\"\"))","v":"2022-03-15"},{"$f":"IF(DAY(maalissu1)=1,IF(AND(YEAR(maalissu1+10)=Kalenterivuosi,MONTH(maalissu1+10)=3),maalissu1+10,\"\"),IF(AND(YEAR(maalissu1+17)=Kalenterivuosi,MONTH(maalissu1+17)=3),maalissu1+17,\"\"))","v":"2022-03-16"},{"$f":"IF(DAY(maalissu1)=1,IF(AND(YEAR(maalissu1+11)=Kalenterivuosi,MONTH(maalissu1+11)=3),maalissu1+11,\"\"),IF(AND(YEAR(maalissu1+18)=Kalenterivuosi,MONTH(maalissu1+18)=3),maalissu1+18,\"\"))","v":"2022-03-17"},{"$f":"IF(DAY(maalissu1)=1,IF(AND(YEAR(maalissu1+12)=Kalenterivuosi,MONTH(maalissu1+12)=3),maalissu1+12,\"\"),IF(AND(YEAR(maalissu1+19)=Kalenterivuosi,MONTH(maalissu1+19)=3),maalissu1+19,\"\"))","v":"2022-03-18"},{"$f":"IF(DAY(maalissu1)=1,IF(AND(YEAR(maalissu1+13)=Kalenterivuosi,MONTH(maalissu1+13)=3),maalissu1+13,\"\"),IF(AND(YEAR(maalissu1+20)=Kalenterivuosi,MONTH(maalissu1+20)=3),maalissu1+20,\"\"))","v":"2022-03-19"},{"$f":"IF(DAY(maalissu1)=1,IF(AND(YEAR(maalissu1+14)=Kalenterivuosi,MONTH(maalissu1+14)=3),maalissu1+14,\"\"),IF(AND(YEAR(maalissu1+21)=Kalenterivuosi,MONTH(maalissu1+21)=3),maalissu1+21,\"\"))","v":"2022-03-20"},null,{"$f":"IF(DAY(huhtisu1)=1,IF(AND(YEAR(huhtisu1+8)=Kalenterivuosi,MONTH(huhtisu1+8)=4),huhtisu1+8,\"\"),IF(AND(YEAR(huhtisu1+15)=Kalenterivuosi,MONTH(huhtisu1+15)=4),huhtisu1+15,\"\"))","v":"2022-04-11"},{"$f":"IF(DAY(huhtisu1)=1,IF(AND(YEAR(huhtisu1+9)=Kalenterivuosi,MONTH(huhtisu1+9)=4),huhtisu1+9,\"\"),IF(AND(YEAR(huhtisu1+16)=Kalenterivuosi,MONTH(huhtisu1+16)=4),huhtisu1+16,\"\"))","v":"2022-04-12"},{"$f":"IF(DAY(huhtisu1)=1,IF(AND(YEAR(huhtisu1+10)=Kalenterivuosi,MONTH(huhtisu1+10)=4),huhtisu1+10,\"\"),IF(AND(YEAR(huhtisu1+17)=Kalenterivuosi,MONTH(huhtisu1+17)=4),huhtisu1+17,\"\"))","v":"2022-04-13"},{"$f":"IF(DAY(huhtisu1)=1,IF(AND(YEAR(huhtisu1+11)=Kalenterivuosi,MONTH(huhtisu1+11)=4),huhtisu1+11,\"\"),IF(AND(YEAR(huhtisu1+18)=Kalenterivuosi,MONTH(huhtisu1+18)=4),huhtisu1+18,\"\"))","v":"2022-04-14"},{"$f":"IF(DAY(huhtisu1)=1,IF(AND(YEAR(huhtisu1+12)=Kalenterivuosi,MONTH(huhtisu1+12)=4),huhtisu1+12,\"\"),IF(AND(YEAR(huhtisu1+19)=Kalenterivuosi,MONTH(huhtisu1+19)=4),huhtisu1+19,\"\"))","v":"2022-04-15"},{"$f":"IF(DAY(huhtisu1)=1,IF(AND(YEAR(huhtisu1+13)=Kalenterivuosi,MONTH(huhtisu1+13)=4),huhtisu1+13,\"\"),IF(AND(YEAR(huhtisu1+20)=Kalenterivuosi,MONTH(huhtisu1+20)=4),huhtisu1+20,\"\"))","v":"2022-04-16"},{"$f":"IF(DAY(huhtisu1)=1,IF(AND(YEAR(huhtisu1+14)=Kalenterivuosi,MONTH(huhtisu1+14)=4),huhtisu1+14,\"\"),IF(AND(YEAR(huhtisu1+21)=Kalenterivuosi,MONTH(huhtisu1+21)=4),huhtisu1+21,\"\"))","v":"2022-04-17"}]
[null,null,{"$f":"IF(DAY(maalissu1)=1,IF(AND(YEAR(maalissu1+15)=Kalenterivuosi,MONTH(maalissu1+15)=3),maalissu1+15,\"\"),IF(AND(YEAR(maalissu1+22)=Kalenterivuosi,MONTH(maalissu1+22)=3),maalissu1+22,\"\"))","v":"2022-03-21"},{"$f":"IF(DAY(maalissu1)=1,IF(AND(YEAR(maalissu1+16)=Kalenterivuosi,MONTH(maalissu1+16)=3),maalissu1+16,\"\"),IF(AND(YEAR(maalissu1+23)=Kalenterivuosi,MONTH(maalissu1+23)=3),maalissu1+23,\"\"))","v":"2022-03-22"},{"$f":"IF(DAY(maalissu1)=1,IF(AND(YEAR(maalissu1+17)=Kalenterivuosi,MONTH(maalissu1+17)=3),maalissu1+17,\"\"),IF(AND(YEAR(maalissu1+24)=Kalenterivuosi,MONTH(maalissu1+24)=3),maalissu1+24,\"\"))","v":"2022-03-23"},{"$f":"IF(DAY(maalissu1)=1,IF(AND(YEAR(maalissu1+18)=Kalenterivuosi,MONTH(maalissu1+18)=3),maalissu1+18,\"\"),IF(AND(YEAR(maalissu1+25)=Kalenterivuosi,MONTH(maalissu1+25)=3),maalissu1+25,\"\"))","v":"2022-03-24"},{"$f":"IF(DAY(maalissu1)=1,IF(AND(YEAR(maalissu1+19)=Kalenterivuosi,MONTH(maalissu1+19)=3),maalissu1+19,\"\"),IF(AND(YEAR(maalissu1+26)=Kalenterivuosi,MONTH(maalissu1+26)=3),maalissu1+26,\"\"))","v":"2022-03-25"},{"$f":"IF(DAY(maalissu1)=1,IF(AND(YEAR(maalissu1+20)=Kalenterivuosi,MONTH(maalissu1+20)=3),maalissu1+20,\"\"),IF(AND(YEAR(maalissu1+27)=Kalenterivuosi,MONTH(maalissu1+27)=3),maalissu1+27,\"\"))","v":"2022-03-26"},{"$f":"IF(DAY(maalissu1)=1,IF(AND(YEAR(maalissu1+21)=Kalenterivuosi,MONTH(maalissu1+21)=3),maalissu1+21,\"\"),IF(AND(YEAR(maalissu1+28)=Kalenterivuosi,MONTH(maalissu1+28)=3),maalissu1+28,\"\"))","v":"2022-03-27"},null,{"$f":"IF(DAY(huhtisu1)=1,IF(AND(YEAR(huhtisu1+15)=Kalenterivuosi,MONTH(huhtisu1+15)=4),huhtisu1+15,\"\"),IF(AND(YEAR(huhtisu1+22)=Kalenterivuosi,MONTH(huhtisu1+22)=4),huhtisu1+22,\"\"))","v":"2022-04-18"},{"$f":"IF(DAY(huhtisu1)=1,IF(AND(YEAR(huhtisu1+16)=Kalenterivuosi,MONTH(huhtisu1+16)=4),huhtisu1+16,\"\"),IF(AND(YEAR(huhtisu1+23)=Kalenterivuosi,MONTH(huhtisu1+23)=4),huhtisu1+23,\"\"))","v":"2022-04-19"},{"$f":"IF(DAY(huhtisu1)=1,IF(AND(YEAR(huhtisu1+17)=Kalenterivuosi,MONTH(huhtisu1+17)=4),huhtisu1+17,\"\"),IF(AND(YEAR(huhtisu1+24)=Kalenterivuosi,MONTH(huhtisu1+24)=4),huhtisu1+24,\"\"))","v":"2022-04-20"},{"$f":"IF(DAY(huhtisu1)=1,IF(AND(YEAR(huhtisu1+18)=Kalenterivuosi,MONTH(huhtisu1+18)=4),huhtisu1+18,\"\"),IF(AND(YEAR(huhtisu1+25)=Kalenterivuosi,MONTH(huhtisu1+25)=4),huhtisu1+25,\"\"))","v":"2022-04-21"},{"$f":"IF(DAY(huhtisu1)=1,IF(AND(YEAR(huhtisu1+19)=Kalenterivuosi,MONTH(huhtisu1+19)=4),huhtisu1+19,\"\"),IF(AND(YEAR(huhtisu1+26)=Kalenterivuosi,MONTH(huhtisu1+26)=4),huhtisu1+26,\"\"))","v":"2022-04-22"},{"$f":"IF(DAY(huhtisu1)=1,IF(AND(YEAR(huhtisu1+20)=Kalenterivuosi,MONTH(huhtisu1+20)=4),huhtisu1+20,\"\"),IF(AND(YEAR(huhtisu1+27)=Kalenterivuosi,MONTH(huhtisu1+27)=4),huhtisu1+27,\"\"))","v":"2022-04-23"},{"$f":"IF(DAY(huhtisu1)=1,IF(AND(YEAR(huhtisu1+21)=Kalenterivuosi,MONTH(huhtisu1+21)=4),huhtisu1+21,\"\"),IF(AND(YEAR(huhtisu1+28)=Kalenterivuosi,MONTH(huhtisu1+28)=4),huhtisu1+28,\"\"))","v":"2022-04-24"}]
[null,null,{"$f":"IF(DAY(maalissu1)=1,IF(AND(YEAR(maalissu1+22)=Kalenterivuosi,MONTH(maalissu1+22)=3),maalissu1+22,\"\"),IF(AND(YEAR(maalissu1+29)=Kalenterivuosi,MONTH(maalissu1+29)=3),maalissu1+29,\"\"))","v":"2022-03-28"},{"$f":"IF(DAY(maalissu1)=1,IF(AND(YEAR(maalissu1+23)=Kalenterivuosi,MONTH(maalissu1+23)=3),maalissu1+23,\"\"),IF(AND(YEAR(maalissu1+30)=Kalenterivuosi,MONTH(maalissu1+30)=3),maalissu1+30,\"\"))","v":"2022-03-29"},{"$f":"IF(DAY(maalissu1)=1,IF(AND(YEAR(maalissu1+24)=Kalenterivuosi,MONTH(maalissu1+24)=3),maalissu1+24,\"\"),IF(AND(YEAR(maalissu1+31)=Kalenterivuosi,MONTH(maalissu1+31)=3),maalissu1+31,\"\"))","v":"2022-03-30"},{"$f":"IF(DAY(maalissu1)=1,IF(AND(YEAR(maalissu1+25)=Kalenterivuosi,MONTH(maalissu1+25)=3),maalissu1+25,\"\"),IF(AND(YEAR(maalissu1+32)=Kalenterivuosi,MONTH(maalissu1+32)=3),maalissu1+32,\"\"))","v":"2022-03-31"},{"$f":"IF(DAY(maalissu1)=1,IF(AND(YEAR(maalissu1+26)=Kalenterivuosi,MONTH(maalissu1+26)=3),maalissu1+26,\"\"),IF(AND(YEAR(maalissu1+33)=Kalenterivuosi,MONTH(maalissu1+33)=3),maalissu1+33,\"\"))","v":""},{"$f":"IF(DAY(maalissu1)=1,IF(AND(YEAR(maalissu1+27)=Kalenterivuosi,MONTH(maalissu1+27)=3),maalissu1+27,\"\"),IF(AND(YEAR(maalissu1+34)=Kalenterivuosi,MONTH(maalissu1+34)=3),maalissu1+34,\"\"))","v":""},{"$f":"IF(DAY(maalissu1)=1,IF(AND(YEAR(maalissu1+28)=Kalenterivuosi,MONTH(maalissu1+28)=3),maalissu1+28,\"\"),IF(AND(YEAR(maalissu1+35)=Kalenterivuosi,MONTH(maalissu1+35)=3),maalissu1+35,\"\"))","v":""},null,{"$f":"IF(DAY(huhtisu1)=1,IF(AND(YEAR(huhtisu1+22)=Kalenterivuosi,MONTH(huhtisu1+22)=4),huhtisu1+22,\"\"),IF(AND(YEAR(huhtisu1+29)=Kalenterivuosi,MONTH(huhtisu1+29)=4),huhtisu1+29,\"\"))","v":"2022-04-25"},{"$f":"IF(DAY(huhtisu1)=1,IF(AND(YEAR(huhtisu1+23)=Kalenterivuosi,MONTH(huhtisu1+23)=4),huhtisu1+23,\"\"),IF(AND(YEAR(huhtisu1+30)=Kalenterivuosi,MONTH(huhtisu1+30)=4),huhtisu1+30,\"\"))","v":"2022-04-26"},{"$f":"IF(DAY(huhtisu1)=1,IF(AND(YEAR(huhtisu1+24)=Kalenterivuosi,MONTH(huhtisu1+24)=4),huhtisu1+24,\"\"),IF(AND(YEAR(huhtisu1+31)=Kalenterivuosi,MONTH(huhtisu1+31)=4),huhtisu1+31,\"\"))","v":"2022-04-27"},{"$f":"IF(DAY(huhtisu1)=1,IF(AND(YEAR(huhtisu1+25)=Kalenterivuosi,MONTH(huhtisu1+25)=4),huhtisu1+25,\"\"),IF(AND(YEAR(huhtisu1+32)=Kalenterivuosi,MONTH(huhtisu1+32)=4),huhtisu1+32,\"\"))","v":"2022-04-28"},{"$f":"IF(DAY(huhtisu1)=1,IF(AND(YEAR(huhtisu1+26)=Kalenterivuosi,MONTH(huhtisu1+26)=4),huhtisu1+26,\"\"),IF(AND(YEAR(huhtisu1+33)=Kalenterivuosi,MONTH(huhtisu1+33)=4),huhtisu1+33,\"\"))","v":"2022-04-29"},{"$f":"IF(DAY(huhtisu1)=1,IF(AND(YEAR(huhtisu1+27)=Kalenterivuosi,MONTH(huhtisu1+27)=4),huhtisu1+27,\"\"),IF(AND(YEAR(huhtisu1+34)=Kalenterivuosi,MONTH(huhtisu1+34)=4),huhtisu1+34,\"\"))","v":"2022-04-30"},{"$f":"IF(DAY(huhtisu1)=1,IF(AND(YEAR(huhtisu1+28)=Kalenterivuosi,MONTH(huhtisu1+28)=4),huhtisu1+28,\"\"),IF(AND(YEAR(huhtisu1+35)=Kalenterivuosi,MONTH(huhtisu1+35)=4),huhtisu1+35,\"\"))","v":""}]
[null,null,{"$f":"IF(DAY(maalissu1)=1,IF(AND(YEAR(maalissu1+29)=Kalenterivuosi,MONTH(maalissu1+29)=3),maalissu1+29,\"\"),IF(AND(YEAR(maalissu1+36)=Kalenterivuosi,MONTH(maalissu1+36)=3),maalissu1+36,\"\"))","v":""},{"$f":"IF(DAY(maalissu1)=1,IF(AND(YEAR(maalissu1+30)=Kalenterivuosi,MONTH(maalissu1+30)=3),maalissu1+30,\"\"),IF(AND(YEAR(maalissu1+37)=Kalenterivuosi,MONTH(maalissu1+37)=3),maalissu1+37,\"\"))","v":""},{"$f":"IF(DAY(maalissu1)=1,IF(AND(YEAR(maalissu1+31)=Kalenterivuosi,MONTH(maalissu1+31)=3),maalissu1+31,\"\"),IF(AND(YEAR(maalissu1+38)=Kalenterivuosi,MONTH(maalissu1+38)=3),maalissu1+38,\"\"))","v":""},{"$f":"IF(DAY(maalissu1)=1,IF(AND(YEAR(maalissu1+32)=Kalenterivuosi,MONTH(maalissu1+32)=3),maalissu1+32,\"\"),IF(AND(YEAR(maalissu1+39)=Kalenterivuosi,MONTH(maalissu1+39)=3),maalissu1+39,\"\"))","v":""},{"$f":"IF(DAY(maalissu1)=1,IF(AND(YEAR(maalissu1+33)=Kalenterivuosi,MONTH(maalissu1+33)=3),maalissu1+33,\"\"),IF(AND(YEAR(maalissu1+40)=Kalenterivuosi,MONTH(maalissu1+40)=3),maalissu1+40,\"\"))","v":""},{"$f":"IF(DAY(maalissu1)=1,IF(AND(YEAR(maalissu1+34)=Kalenterivuosi,MONTH(maalissu1+34)=3),maalissu1+34,\"\"),IF(AND(YEAR(maalissu1+41)=Kalenterivuosi,MONTH(maalissu1+41)=3),maalissu1+41,\"\"))","v":""},{"$f":"IF(DAY(maalissu1)=1,IF(AND(YEAR(maalissu1+35)=Kalenterivuosi,MONTH(maalissu1+35)=3),maalissu1+35,\"\"),IF(AND(YEAR(maalissu1+42)=Kalenterivuosi,MONTH(maalissu1+42)=3),maalissu1+42,\"\"))","v":""},null,{"$f":"IF(DAY(huhtisu1)=1,IF(AND(YEAR(huhtisu1+29)=Kalenterivuosi,MONTH(huhtisu1+29)=4),huhtisu1+29,\"\"),IF(AND(YEAR(huhtisu1+36)=Kalenterivuosi,MONTH(huhtisu1+36)=4),huhtisu1+36,\"\"))","v":""},{"$f":"IF(DAY(huhtisu1)=1,IF(AND(YEAR(huhtisu1+30)=Kalenterivuosi,MONTH(huhtisu1+30)=4),huhtisu1+30,\"\"),IF(AND(YEAR(huhtisu1+37)=Kalenterivuosi,MONTH(huhtisu1+37)=4),huhtisu1+37,\"\"))","v":""},{"$f":"IF(DAY(huhtisu1)=1,IF(AND(YEAR(huhtisu1+31)=Kalenterivuosi,MONTH(huhtisu1+31)=4),huhtisu1+31,\"\"),IF(AND(YEAR(huhtisu1+38)=Kalenterivuosi,MONTH(huhtisu1+38)=4),huhtisu1+38,\"\"))","v":""},{"$f":"IF(DAY(huhtisu1)=1,IF(AND(YEAR(huhtisu1+32)=Kalenterivuosi,MONTH(huhtisu1+32)=4),huhtisu1+32,\"\"),IF(AND(YEAR(huhtisu1+39)=Kalenterivuosi,MONTH(huhtisu1+39)=4),huhtisu1+39,\"\"))","v":""},{"$f":"IF(DAY(huhtisu1)=1,IF(AND(YEAR(huhtisu1+33)=Kalenterivuosi,MONTH(huhtisu1+33)=4),huhtisu1+33,\"\"),IF(AND(YEAR(huhtisu1+40)=Kalenterivuosi,MONTH(huhtisu1+40)=4),huhtisu1+40,\"\"))","v":""},{"$f":"IF(DAY(huhtisu1)=1,IF(AND(YEAR(huhtisu1+34)=Kalenterivuosi,MONTH(huhtisu1+34)=4),huhtisu1+34,\"\"),IF(AND(YEAR(huhtisu1+41)=Kalenterivuosi,MONTH(huhtisu1+41)=4),huhtisu1+41,\"\"))","v":""},{"$f":"IF(DAY(huhtisu1)=1,IF(AND(YEAR(huhtisu1+35)=Kalenterivuosi,MONTH(huhtisu1+35)=4),huhtisu1+35,\"\"),IF(AND(YEAR(huhtisu1+42)=Kalenterivuosi,MONTH(huhtisu1+42)=4),huhtisu1+42,\"\"))","v":""}]
[]
["Toukokuun otsikko on solussa C21 ja kesäkuun solussa K21",null,"TOUKOKUU",{"$nulls":7},"KESÄKUU"]
["Toukokuun kalenteritaulukko on soluissa C22–I28 ja kesäkuun kalenteritaulukko soluissa K22–Q28. Seuraava ohje on solussa A30",null,"MA","TI","KE","TO","PE","LA","SU",null,"MA","TI","KE","TO","PE","LA","SU"]
[null,null,{"$f":"IF(DAY(toukosu1)=1,\"\",IF(AND(YEAR(toukosu1+1)=Kalenterivuosi,MONTH(toukosu1+1)=5),toukosu1+1,\"\"))","v":""},{"$f":"IF(DAY(toukosu1)=1,\"\",IF(AND(YEAR(toukosu1+2)=Kalenterivuosi,MONTH(toukosu1+2)=5),toukosu1+2,\"\"))","v":""},{"$f":"IF(DAY(toukosu1)=1,\"\",IF(AND(YEAR(toukosu1+3)=Kalenterivuosi,MONTH(toukosu1+3)=5),toukosu1+3,\"\"))","v":""},{"$f":"IF(DAY(toukosu1)=1,\"\",IF(AND(YEAR(toukosu1+4)=Kalenterivuosi,MONTH(toukosu1+4)=5),toukosu1+4,\"\"))","v":""},{"$f":"IF(DAY(toukosu1)=1,\"\",IF(AND(YEAR(toukosu1+5)=Kalenterivuosi,MONTH(toukosu1+5)=5),toukosu1+5,\"\"))","v":""},{"$f":"IF(DAY(toukosu1)=1,\"\",IF(AND(YEAR(toukosu1+6)=Kalenterivuosi,MONTH(toukosu1+6)=5),toukosu1+6,\"\"))","v":""},{"$f":"IF(DAY(toukosu1)=1,IF(AND(YEAR(toukosu1)=Kalenterivuosi,MONTH(toukosu1)=5),toukosu1,\"\"),IF(AND(YEAR(toukosu1+7)=Kalenterivuosi,MONTH(toukosu1+7)=5),toukosu1+7,\"\"))","v":"2022-05-01"},null,{"$f":"IF(DAY(kesäsu1)=1,\"\",IF(AND(YEAR(kesäsu1+1)=Kalenterivuosi,MONTH(kesäsu1+1)=6),kesäsu1+1,\"\"))","v":""},{"$f":"IF(DAY(kesäsu1)=1,\"\",IF(AND(YEAR(kesäsu1+2)=Kalenterivuosi,MONTH(kesäsu1+2)=6),kesäsu1+2,\"\"))","v":""},{"$f":"IF(DAY(kesäsu1)=1,\"\",IF(AND(YEAR(kesäsu1+3)=Kalenterivuosi,MONTH(kesäsu1+3)=6),kesäsu1+3,\"\"))","v":"2022-06-01"},{"$f":"IF(DAY(kesäsu1)=1,\"\",IF(AND(YEAR(kesäsu1+4)=Kalenterivuosi,MONTH(kesäsu1+4)=6),kesäsu1+4,\"\"))","v":"2022-06-02"},{"$f":"IF(DAY(kesäsu1)=1,\"\",IF(AND(YEAR(kesäsu1+5)=Kalenterivuosi,MONTH(kesäsu1+5)=6),kesäsu1+5,\"\"))","v":"2022-06-03"},{"$f":"IF(DAY(kesäsu1)=1,\"\",IF(AND(YEAR(kesäsu1+6)=Kalenterivuosi,MONTH(kesäsu1+6)=6),kesäsu1+6,\"\"))","v":"2022-06-04"},{"$f":"IF(DAY(kesäsu1)=1,IF(AND(YEAR(kesäsu1)=Kalenterivuosi,MONTH(kesäsu1)=6),kesäsu1,\"\"),IF(AND(YEAR(kesäsu1+7)=Kalenterivuosi,MONTH(kesäsu1+7)=6),kesäsu1+7,\"\"))","v":"2022-06-05"}]
[null,null,{"$f":"IF(DAY(toukosu1)=1,IF(AND(YEAR(toukosu1+1)=Kalenterivuosi,MONTH(toukosu1+1)=5),toukosu1+1,\"\"),IF(AND(YEAR(toukosu1+8)=Kalenterivuosi,MONTH(toukosu1+8)=5),toukosu1+8,\"\"))","v":"2022-05-02"},{"$f":"IF(DAY(toukosu1)=1,IF(AND(YEAR(toukosu1+2)=Kalenterivuosi,MONTH(toukosu1+2)=5),toukosu1+2,\"\"),IF(AND(YEAR(toukosu1+9)=Kalenterivuosi,MONTH(toukosu1+9)=5),toukosu1+9,\"\"))","v":"2022-05-03"},{"$f":"IF(DAY(toukosu1)=1,IF(AND(YEAR(toukosu1+3)=Kalenterivuosi,MONTH(toukosu1+3)=5),toukosu1+3,\"\"),IF(AND(YEAR(toukosu1+10)=Kalenterivuosi,MONTH(toukosu1+10)=5),toukosu1+10,\"\"))","v":"2022-05-04"},{"$f":"IF(DAY(toukosu1)=1,IF(AND(YEAR(toukosu1+4)=Kalenterivuosi,MONTH(toukosu1+4)=5),toukosu1+4,\"\"),IF(AND(YEAR(toukosu1+11)=Kalenterivuosi,MONTH(toukosu1+11)=5),toukosu1+11,\"\"))","v":"2022-05-05"},{"$f":"IF(DAY(toukosu1)=1,IF(AND(YEAR(toukosu1+5)=Kalenterivuosi,MONTH(toukosu1+5)=5),toukosu1+5,\"\"),IF(AND(YEAR(toukosu1+12)=Kalenterivuosi,MONTH(toukosu1+12)=5),toukosu1+12,\"\"))","v":"2022-05-06"},{"$f":"IF(DAY(toukosu1)=1,IF(AND(YEAR(toukosu1+6)=Kalenterivuosi,MONTH(toukosu1+6)=5),toukosu1+6,\"\"),IF(AND(YEAR(toukosu1+13)=Kalenterivuosi,MONTH(toukosu1+13)=5),toukosu1+13,\"\"))","v":"2022-05-07"},{"$f":"IF(DAY(toukosu1)=1,IF(AND(YEAR(toukosu1+7)=Kalenterivuosi,MONTH(toukosu1+7)=5),toukosu1+7,\"\"),IF(AND(YEAR(toukosu1+14)=Kalenterivuosi,MONTH(toukosu1+14)=5),toukosu1+14,\"\"))","v":"2022-05-08"},null,{"$f":"IF(DAY(kesäsu1)=1,IF(AND(YEAR(kesäsu1+1)=Kalenterivuosi,MONTH(kesäsu1+1)=6),kesäsu1+1,\"\"),IF(AND(YEAR(kesäsu1+8)=Kalenterivuosi,MONTH(kesäsu1+8)=6),kesäsu1+8,\"\"))","v":"2022-06-06"},{"$f":"IF(DAY(kesäsu1)=1,IF(AND(YEAR(kesäsu1+2)=Kalenterivuosi,MONTH(kesäsu1+2)=6),kesäsu1+2,\"\"),IF(AND(YEAR(kesäsu1+9)=Kalenterivuosi,MONTH(kesäsu1+9)=6),kesäsu1+9,\"\"))","v":"2022-06-07"},{"$f":"IF(DAY(kesäsu1)=1,IF(AND(YEAR(kesäsu1+3)=Kalenterivuosi,MONTH(kesäsu1+3)=6),kesäsu1+3,\"\"),IF(AND(YEAR(kesäsu1+10)=Kalenterivuosi,MONTH(kesäsu1+10)=6),kesäsu1+10,\"\"))","v":"2022-06-08"},{"$f":"IF(DAY(kesäsu1)=1,IF(AND(YEAR(kesäsu1+4)=Kalenterivuosi,MONTH(kesäsu1+4)=6),kesäsu1+4,\"\"),IF(AND(YEAR(kesäsu1+11)=Kalenterivuosi,MONTH(kesäsu1+11)=6),kesäsu1+11,\"\"))","v":"2022-06-09"},{"$f":"IF(DAY(kesäsu1)=1,IF(AND(YEAR(kesäsu1+5)=Kalenterivuosi,MONTH(kesäsu1+5)=6),kesäsu1+5,\"\"),IF(AND(YEAR(kesäsu1+12)=Kalenterivuosi,MONTH(kesäsu1+12)=6),kesäsu1+12,\"\"))","v":"2022-06-10"},{"$f":"IF(DAY(kesäsu1)=1,IF(AND(YEAR(kesäsu1+6)=Kalenterivuosi,MONTH(kesäsu1+6)=6),kesäsu1+6,\"\"),IF(AND(YEAR(kesäsu1+13)=Kalenterivuosi,MONTH(kesäsu1+13)=6),kesäsu1+13,\"\"))","v":"2022-06-11"},{"$f":"IF(DAY(kesäsu1)=1,IF(AND(YEAR(kesäsu1+7)=Kalenterivuosi,MONTH(kesäsu1+7)=6),kesäsu1+7,\"\"),IF(AND(YEAR(kesäsu1+14)=Kalenterivuosi,MONTH(kesäsu1+14)=6),kesäsu1+14,\"\"))","v":"2022-06-12"}]
[null,null,{"$f":"IF(DAY(toukosu1)=1,IF(AND(YEAR(toukosu1+8)=Kalenterivuosi,MONTH(toukosu1+8)=5),toukosu1+8,\"\"),IF(AND(YEAR(toukosu1+15)=Kalenterivuosi,MONTH(toukosu1+15)=5),toukosu1+15,\"\"))","v":"2022-05-09"},{"$f":"IF(DAY(toukosu1)=1,IF(AND(YEAR(toukosu1+9)=Kalenterivuosi,MONTH(toukosu1+9)=5),toukosu1+9,\"\"),IF(AND(YEAR(toukosu1+16)=Kalenterivuosi,MONTH(toukosu1+16)=5),toukosu1+16,\"\"))","v":"2022-05-10"},{"$f":"IF(DAY(toukosu1)=1,IF(AND(YEAR(toukosu1+10)=Kalenterivuosi,MONTH(toukosu1+10)=5),toukosu1+10,\"\"),IF(AND(YEAR(toukosu1+17)=Kalenterivuosi,MONTH(toukosu1+17)=5),toukosu1+17,\"\"))","v":"2022-05-11"},{"$f":"IF(DAY(toukosu1)=1,IF(AND(YEAR(toukosu1+11)=Kalenterivuosi,MONTH(toukosu1+11)=5),toukosu1+11,\"\"),IF(AND(YEAR(toukosu1+18)=Kalenterivuosi,MONTH(toukosu1+18)=5),toukosu1+18,\"\"))","v":"2022-05-12"},{"$f":"IF(DAY(toukosu1)=1,IF(AND(YEAR(toukosu1+12)=Kalenterivuosi,MONTH(toukosu1+12)=5),toukosu1+12,\"\"),IF(AND(YEAR(toukosu1+19)=Kalenterivuosi,MONTH(toukosu1+19)=5),toukosu1+19,\"\"))","v":"2022-05-13"},{"$f":"IF(DAY(toukosu1)=1,IF(AND(YEAR(toukosu1+13)=Kalenterivuosi,MONTH(toukosu1+13)=5),toukosu1+13,\"\"),IF(AND(YEAR(toukosu1+20)=Kalenterivuosi,MONTH(toukosu1+20)=5),toukosu1+20,\"\"))","v":"2022-05-14"},{"$f":"IF(DAY(toukosu1)=1,IF(AND(YEAR(toukosu1+14)=Kalenterivuosi,MONTH(toukosu1+14)=5),toukosu1+14,\"\"),IF(AND(YEAR(toukosu1+21)=Kalenterivuosi,MONTH(toukosu1+21)=5),toukosu1+21,\"\"))","v":"2022-05-15"},null,{"$f":"IF(DAY(kesäsu1)=1,IF(AND(YEAR(kesäsu1+8)=Kalenterivuosi,MONTH(kesäsu1+8)=6),kesäsu1+8,\"\"),IF(AND(YEAR(kesäsu1+15)=Kalenterivuosi,MONTH(kesäsu1+15)=6),kesäsu1+15,\"\"))","v":"2022-06-13"},{"$f":"IF(DAY(kesäsu1)=1,IF(AND(YEAR(kesäsu1+9)=Kalenterivuosi,MONTH(kesäsu1+9)=6),kesäsu1+9,\"\"),IF(AND(YEAR(kesäsu1+16)=Kalenterivuosi,MONTH(kesäsu1+16)=6),kesäsu1+16,\"\"))","v":"2022-06-14"},{"$f":"IF(DAY(kesäsu1)=1,IF(AND(YEAR(kesäsu1+10)=Kalenterivuosi,MONTH(kesäsu1+10)=6),kesäsu1+10,\"\"),IF(AND(YEAR(kesäsu1+17)=Kalenterivuosi,MONTH(kesäsu1+17)=6),kesäsu1+17,\"\"))","v":"2022-06-15"},{"$f":"IF(DAY(kesäsu1)=1,IF(AND(YEAR(kesäsu1+11)=Kalenterivuosi,MONTH(kesäsu1+11)=6),kesäsu1+11,\"\"),IF(AND(YEAR(kesäsu1+18)=Kalenterivuosi,MONTH(kesäsu1+18)=6),kesäsu1+18,\"\"))","v":"2022-06-16"},{"$f":"IF(DAY(kesäsu1)=1,IF(AND(YEAR(kesäsu1+12)=Kalenterivuosi,MONTH(kesäsu1+12)=6),kesäsu1+12,\"\"),IF(AND(YEAR(kesäsu1+19)=Kalenterivuosi,MONTH(kesäsu1+19)=6),kesäsu1+19,\"\"))","v":"2022-06-17"},{"$f":"IF(DAY(kesäsu1)=1,IF(AND(YEAR(kesäsu1+13)=Kalenterivuosi,MONTH(kesäsu1+13)=6),kesäsu1+13,\"\"),IF(AND(YEAR(kesäsu1+20)=Kalenterivuosi,MONTH(kesäsu1+20)=6),kesäsu1+20,\"\"))","v":"2022-06-18"},{"$f":"IF(DAY(kesäsu1)=1,IF(AND(YEAR(kesäsu1+14)=Kalenterivuosi,MONTH(kesäsu1+14)=6),kesäsu1+14,\"\"),IF(AND(YEAR(kesäsu1+21)=Kalenterivuosi,MONTH(kesäsu1+21)=6),kesäsu1+21,\"\"))","v":"2022-06-19"}]
[null,null,{"$f":"IF(DAY(toukosu1)=1,IF(AND(YEAR(toukosu1+15)=Kalenterivuosi,MONTH(toukosu1+15)=5),toukosu1+15,\"\"),IF(AND(YEAR(toukosu1+22)=Kalenterivuosi,MONTH(toukosu1+22)=5),toukosu1+22,\"\"))","v":"2022-05-16"},{"$f":"IF(DAY(toukosu1)=1,IF(AND(YEAR(toukosu1+16)=Kalenterivuosi,MONTH(toukosu1+16)=5),toukosu1+16,\"\"),IF(AND(YEAR(toukosu1+23)=Kalenterivuosi,MONTH(toukosu1+23)=5),toukosu1+23,\"\"))","v":"2022-05-17"},{"$f":"IF(DAY(toukosu1)=1,IF(AND(YEAR(toukosu1+17)=Kalenterivuosi,MONTH(toukosu1+17)=5),toukosu1+17,\"\"),IF(AND(YEAR(toukosu1+24)=Kalenterivuosi,MONTH(toukosu1+24)=5),toukosu1+24,\"\"))","v":"2022-05-18"},{"$f":"IF(DAY(toukosu1)=1,IF(AND(YEAR(toukosu1+18)=Kalenterivuosi,MONTH(toukosu1+18)=5),toukosu1+18,\"\"),IF(AND(YEAR(toukosu1+25)=Kalenterivuosi,MONTH(toukosu1+25)=5),toukosu1+25,\"\"))","v":"2022-05-19"},{"$f":"IF(DAY(toukosu1)=1,IF(AND(YEAR(toukosu1+19)=Kalenterivuosi,MONTH(toukosu1+19)=5),toukosu1+19,\"\"),IF(AND(YEAR(toukosu1+26)=Kalenterivuosi,MONTH(toukosu1+26)=5),toukosu1+26,\"\"))","v":"2022-05-20"},{"$f":"IF(DAY(toukosu1)=1,IF(AND(YEAR(toukosu1+20)=Kalenterivuosi,MONTH(toukosu1+20)=5),toukosu1+20,\"\"),IF(AND(YEAR(toukosu1+27)=Kalenterivuosi,MONTH(toukosu1+27)=5),toukosu1+27,\"\"))","v":"2022-05-21"},{"$f":"IF(DAY(toukosu1)=1,IF(AND(YEAR(toukosu1+21)=Kalenterivuosi,MONTH(toukosu1+21)=5),toukosu1+21,\"\"),IF(AND(YEAR(toukosu1+28)=Kalenterivuosi,MONTH(toukosu1+28)=5),toukosu1+28,\"\"))","v":"2022-05-22"},null,{"$f":"IF(DAY(kesäsu1)=1,IF(AND(YEAR(kesäsu1+15)=Kalenterivuosi,MONTH(kesäsu1+15)=6),kesäsu1+15,\"\"),IF(AND(YEAR(kesäsu1+22)=Kalenterivuosi,MONTH(kesäsu1+22)=6),kesäsu1+22,\"\"))","v":"2022-06-20"},{"$f":"IF(DAY(kesäsu1)=1,IF(AND(YEAR(kesäsu1+16)=Kalenterivuosi,MONTH(kesäsu1+16)=6),kesäsu1+16,\"\"),IF(AND(YEAR(kesäsu1+23)=Kalenterivuosi,MONTH(kesäsu1+23)=6),kesäsu1+23,\"\"))","v":"2022-06-21"},{"$f":"IF(DAY(kesäsu1)=1,IF(AND(YEAR(kesäsu1+17)=Kalenterivuosi,MONTH(kesäsu1+17)=6),kesäsu1+17,\"\"),IF(AND(YEAR(kesäsu1+24)=Kalenterivuosi,MONTH(kesäsu1+24)=6),kesäsu1+24,\"\"))","v":"2022-06-22"},{"$f":"IF(DAY(kesäsu1)=1,IF(AND(YEAR(kesäsu1+18)=Kalenterivuosi,MONTH(kesäsu1+18)=6),kesäsu1+18,\"\"),IF(AND(YEAR(kesäsu1+25)=Kalenterivuosi,MONTH(kesäsu1+25)=6),kesäsu1+25,\"\"))","v":"2022-06-23"},{"$f":"IF(DAY(kesäsu1)=1,IF(AND(YEAR(kesäsu1+19)=Kalenterivuosi,MONTH(kesäsu1+19)=6),kesäsu1+19,\"\"),IF(AND(YEAR(kesäsu1+26)=Kalenterivuosi,MONTH(kesäsu1+26)=6),kesäsu1+26,\"\"))","v":"2022-06-24"},{"$f":"IF(DAY(kesäsu1)=1,IF(AND(YEAR(kesäsu1+20)=Kalenterivuosi,MONTH(kesäsu1+20)=6),kesäsu1+20,\"\"),IF(AND(YEAR(kesäsu1+27)=Kalenterivuosi,MONTH(kesäsu1+27)=6),kesäsu1+27,\"\"))","v":"2022-06-25"},{"$f":"IF(DAY(kesäsu1)=1,IF(AND(YEAR(kesäsu1+21)=Kalenterivuosi,MONTH(kesäsu1+21)=6),kesäsu1+21,\"\"),IF(AND(YEAR(kesäsu1+28)=Kalenterivuosi,MONTH(kesäsu1+28)=6),kesäsu1+28,\"\"))","v":"2022-06-26"}]
[null,null,{"$f":"IF(DAY(toukosu1)=1,IF(AND(YEAR(toukosu1+22)=Kalenterivuosi,MONTH(toukosu1+22)=5),toukosu1+22,\"\"),IF(AND(YEAR(toukosu1+29)=Kalenterivuosi,MONTH(toukosu1+29)=5),toukosu1+29,\"\"))","v":"2022-05-23"},{"$f":"IF(DAY(toukosu1)=1,IF(AND(YEAR(toukosu1+23)=Kalenterivuosi,MONTH(toukosu1+23)=5),toukosu1+23,\"\"),IF(AND(YEAR(toukosu1+30)=Kalenterivuosi,MONTH(toukosu1+30)=5),toukosu1+30,\"\"))","v":"2022-05-24"},{"$f":"IF(DAY(toukosu1)=1,IF(AND(YEAR(toukosu1+24)=Kalenterivuosi,MONTH(toukosu1+24)=5),toukosu1+24,\"\"),IF(AND(YEAR(toukosu1+31)=Kalenterivuosi,MONTH(toukosu1+31)=5),toukosu1+31,\"\"))","v":"2022-05-25"},{"$f":"IF(DAY(toukosu1)=1,IF(AND(YEAR(toukosu1+25)=Kalenterivuosi,MONTH(toukosu1+25)=5),toukosu1+25,\"\"),IF(AND(YEAR(toukosu1+32)=Kalenterivuosi,MONTH(toukosu1+32)=5),toukosu1+32,\"\"))","v":"2022-05-26"},{"$f":"IF(DAY(toukosu1)=1,IF(AND(YEAR(toukosu1+26)=Kalenterivuosi,MONTH(toukosu1+26)=5),toukosu1+26,\"\"),IF(AND(YEAR(toukosu1+33)=Kalenterivuosi,MONTH(toukosu1+33)=5),toukosu1+33,\"\"))","v":"2022-05-27"},{"$f":"IF(DAY(toukosu1)=1,IF(AND(YEAR(toukosu1+27)=Kalenterivuosi,MONTH(toukosu1+27)=5),toukosu1+27,\"\"),IF(AND(YEAR(toukosu1+34)=Kalenterivuosi,MONTH(toukosu1+34)=5),toukosu1+34,\"\"))","v":"2022-05-28"},{"$f":"IF(DAY(toukosu1)=1,IF(AND(YEAR(toukosu1+28)=Kalenterivuosi,MONTH(toukosu1+28)=5),toukosu1+28,\"\"),IF(AND(YEAR(toukosu1+35)=Kalenterivuosi,MONTH(toukosu1+35)=5),toukosu1+35,\"\"))","v":"2022-05-29"},null,{"$f":"IF(DAY(kesäsu1)=1,IF(AND(YEAR(kesäsu1+22)=Kalenterivuosi,MONTH(kesäsu1+22)=6),kesäsu1+22,\"\"),IF(AND(YEAR(kesäsu1+29)=Kalenterivuosi,MONTH(kesäsu1+29)=6),kesäsu1+29,\"\"))","v":"2022-06-27"},{"$f":"IF(DAY(kesäsu1)=1,IF(AND(YEAR(kesäsu1+23)=Kalenterivuosi,MONTH(kesäsu1+23)=6),kesäsu1+23,\"\"),IF(AND(YEAR(kesäsu1+30)=Kalenterivuosi,MONTH(kesäsu1+30)=6),kesäsu1+30,\"\"))","v":"2022-06-28"},{"$f":"IF(DAY(kesäsu1)=1,IF(AND(YEAR(kesäsu1+24)=Kalenterivuosi,MONTH(kesäsu1+24)=6),kesäsu1+24,\"\"),IF(AND(YEAR(kesäsu1+31)=Kalenterivuosi,MONTH(kesäsu1+31)=6),kesäsu1+31,\"\"))","v":"2022-06-29"},{"$f":"IF(DAY(kesäsu1)=1,IF(AND(YEAR(kesäsu1+25)=Kalenterivuosi,MONTH(kesäsu1+25)=6),kesäsu1+25,\"\"),IF(AND(YEAR(kesäsu1+32)=Kalenterivuosi,MONTH(kesäsu1+32)=6),kesäsu1+32,\"\"))","v":"2022-06-30"},{"$f":"IF(DAY(kesäsu1)=1,IF(AND(YEAR(kesäsu1+26)=Kalenterivuosi,MONTH(kesäsu1+26)=6),kesäsu1+26,\"\"),IF(AND(YEAR(kesäsu1+33)=Kalenterivuosi,MONTH(kesäsu1+33)=6),kesäsu1+33,\"\"))","v":""},{"$f":"IF(DAY(kesäsu1)=1,IF(AND(YEAR(kesäsu1+27)=Kalenterivuosi,MONTH(kesäsu1+27)=6),kesäsu1+27,\"\"),IF(AND(YEAR(kesäsu1+34)=Kalenterivuosi,MONTH(kesäsu1+34)=6),kesäsu1+34,\"\"))","v":""},{"$f":"IF(DAY(kesäsu1)=1,IF(AND(YEAR(kesäsu1+28)=Kalenterivuosi,MONTH(kesäsu1+28)=6),kesäsu1+28,\"\"),IF(AND(YEAR(kesäsu1+35)=Kalenterivuosi,MONTH(kesäsu1+35)=6),kesäsu1+35,\"\"))","v":""}]
[null,null,{"$f":"IF(DAY(toukosu1)=1,IF(AND(YEAR(toukosu1+29)=Kalenterivuosi,MONTH(toukosu1+29)=5),toukosu1+29,\"\"),IF(AND(YEAR(toukosu1+36)=Kalenterivuosi,MONTH(toukosu1+36)=5),toukosu1+36,\"\"))","v":"2022-05-30"},{"$f":"IF(DAY(toukosu1)=1,IF(AND(YEAR(toukosu1+30)=Kalenterivuosi,MONTH(toukosu1+30)=5),toukosu1+30,\"\"),IF(AND(YEAR(toukosu1+37)=Kalenterivuosi,MONTH(toukosu1+37)=5),toukosu1+37,\"\"))","v":"2022-05-31"},{"$f":"IF(DAY(toukosu1)=1,IF(AND(YEAR(toukosu1+31)=Kalenterivuosi,MONTH(toukosu1+31)=5),toukosu1+31,\"\"),IF(AND(YEAR(toukosu1+38)=Kalenterivuosi,MONTH(toukosu1+38)=5),toukosu1+38,\"\"))","v":""},{"$f":"IF(DAY(toukosu1)=1,IF(AND(YEAR(toukosu1+32)=Kalenterivuosi,MONTH(toukosu1+32)=5),toukosu1+32,\"\"),IF(AND(YEAR(toukosu1+39)=Kalenterivuosi,MONTH(toukosu1+39)=5),toukosu1+39,\"\"))","v":""},{"$f":"IF(DAY(toukosu1)=1,IF(AND(YEAR(toukosu1+33)=Kalenterivuosi,MONTH(toukosu1+33)=5),toukosu1+33,\"\"),IF(AND(YEAR(toukosu1+40)=Kalenterivuosi,MONTH(toukosu1+40)=5),toukosu1+40,\"\"))","v":""},{"$f":"IF(DAY(toukosu1)=1,IF(AND(YEAR(toukosu1+34)=Kalenterivuosi,MONTH(toukosu1+34)=5),toukosu1+34,\"\"),IF(AND(YEAR(toukosu1+41)=Kalenterivuosi,MONTH(toukosu1+41)=5),toukosu1+41,\"\"))","v":""},{"$f":"IF(DAY(toukosu1)=1,IF(AND(YEAR(toukosu1+35)=Kalenterivuosi,MONTH(toukosu1+35)=5),toukosu1+35,\"\"),IF(AND(YEAR(toukosu1+42)=Kalenterivuosi,MONTH(toukosu1+42)=5),toukosu1+42,\"\"))","v":""},null,{"$f":"IF(DAY(kesäsu1)=1,IF(AND(YEAR(kesäsu1+29)=Kalenterivuosi,MONTH(kesäsu1+29)=6),kesäsu1+29,\"\"),IF(AND(YEAR(kesäsu1+36)=Kalenterivuosi,MONTH(kesäsu1+36)=6),kesäsu1+36,\"\"))","v":""},{"$f":"IF(DAY(kesäsu1)=1,IF(AND(YEAR(kesäsu1+30)=Kalenterivuosi,MONTH(kesäsu1+30)=6),kesäsu1+30,\"\"),IF(AND(YEAR(kesäsu1+37)=Kalenterivuosi,MONTH(kesäsu1+37)=6),kesäsu1+37,\"\"))","v":""},{"$f":"IF(DAY(kesäsu1)=1,IF(AND(YEAR(kesäsu1+31)=Kalenterivuosi,MONTH(kesäsu1+31)=6),kesäsu1+31,\"\"),IF(AND(YEAR(kesäsu1+38)=Kalenterivuosi,MONTH(kesäsu1+38)=6),kesäsu1+38,\"\"))","v":""},{"$f":"IF(DAY(kesäsu1)=1,IF(AND(YEAR(kesäsu1+32)=Kalenterivuosi,MONTH(kesäsu1+32)=6),kesäsu1+32,\"\"),IF(AND(YEAR(kesäsu1+39)=Kalenterivuosi,MONTH(kesäsu1+39)=6),kesäsu1+39,\"\"))","v":""},{"$f":"IF(DAY(kesäsu1)=1,IF(AND(YEAR(kesäsu1+33)=Kalenterivuosi,MONTH(kesäsu1+33)=6),kesäsu1+33,\"\"),IF(AND(YEAR(kesäsu1+40)=Kalenterivuosi,MONTH(kesäsu1+40)=6),kesäsu1+40,\"\"))","v":""},{"$f":"IF(DAY(kesäsu1)=1,IF(AND(YEAR(kesäsu1+34)=Kalenterivuosi,MONTH(kesäsu1+34)=6),kesäsu1+34,\"\"),IF(AND(YEAR(kesäsu1+41)=Kalenterivuosi,MONTH(kesäsu1+41)=6),kesäsu1+41,\"\"))","v":""},{"$f":"IF(DAY(kesäsu1)=1,IF(AND(YEAR(kesäsu1+35)=Kalenterivuosi,MONTH(kesäsu1+35)=6),kesäsu1+35,\"\"),IF(AND(YEAR(kesäsu1+42)=Kalenterivuosi,MONTH(kesäsu1+42)=6),kesäsu1+42,\"\"))","v":""}]
[]
["Heinäkuun otsikko on solussa C30 ja elokuun solussa K30",null,"HEINÄKUU",{"$nulls":7},"ELOKUU"]
["Heinäkuun kalenteritaulukko on soluissa C31–I37 ja elokuun kalenteritaulukko soluissa K31–Q37. Seuraava ohje on solussa A39",null,"MA","TI","KE","TO","PE","LA","SU",null,"MA","TI","KE","TO","PE","LA","SU"]
[null,null,{"$f":"IF(DAY(heinäsu1)=1,\"\",IF(AND(YEAR(heinäsu1+1)=Kalenterivuosi,MONTH(heinäsu1+1)=7),heinäsu1+1,\"\"))","v":""},{"$f":"IF(DAY(heinäsu1)=1,\"\",IF(AND(YEAR(heinäsu1+2)=Kalenterivuosi,MONTH(heinäsu1+2)=7),heinäsu1+2,\"\"))","v":""},{"$f":"IF(DAY(heinäsu1)=1,\"\",IF(AND(YEAR(heinäsu1+3)=Kalenterivuosi,MONTH(heinäsu1+3)=7),heinäsu1+3,\"\"))","v":""},{"$f":"IF(DAY(heinäsu1)=1,\"\",IF(AND(YEAR(heinäsu1+4)=Kalenterivuosi,MONTH(heinäsu1+4)=7),heinäsu1+4,\"\"))","v":""},{"$f":"IF(DAY(heinäsu1)=1,\"\",IF(AND(YEAR(heinäsu1+5)=Kalenterivuosi,MONTH(heinäsu1+5)=7),heinäsu1+5,\"\"))","v":"2022-07-01"},{"$f":"IF(DAY(heinäsu1)=1,\"\",IF(AND(YEAR(heinäsu1+6)=Kalenterivuosi,MONTH(heinäsu1+6)=7),heinäsu1+6,\"\"))","v":"2022-07-02"},{"$f":"IF(DAY(heinäsu1)=1,IF(AND(YEAR(heinäsu1)=Kalenterivuosi,MONTH(heinäsu1)=7),heinäsu1,\"\"),IF(AND(YEAR(heinäsu1+7)=Kalenterivuosi,MONTH(heinäsu1+7)=7),heinäsu1+7,\"\"))","v":"2022-07-03"},null,{"$f":"IF(DAY(elosu1)=1,\"\",IF(AND(YEAR(elosu1+1)=Kalenterivuosi,MONTH(elosu1+1)=8),elosu1+1,\"\"))","v":"2022-08-01"},{"$f":"IF(DAY(elosu1)=1,\"\",IF(AND(YEAR(elosu1+2)=Kalenterivuosi,MONTH(elosu1+2)=8),elosu1+2,\"\"))","v":"2022-08-02"},{"$f":"IF(DAY(elosu1)=1,\"\",IF(AND(YEAR(elosu1+3)=Kalenterivuosi,MONTH(elosu1+3)=8),elosu1+3,\"\"))","v":"2022-08-03"},{"$f":"IF(DAY(elosu1)=1,\"\",IF(AND(YEAR(elosu1+4)=Kalenterivuosi,MONTH(elosu1+4)=8),elosu1+4,\"\"))","v":"2022-08-04"},{"$f":"IF(DAY(elosu1)=1,\"\",IF(AND(YEAR(elosu1+5)=Kalenterivuosi,MONTH(elosu1+5)=8),elosu1+5,\"\"))","v":"2022-08-05"},{"$f":"IF(DAY(elosu1)=1,\"\",IF(AND(YEAR(elosu1+6)=Kalenterivuosi,MONTH(elosu1+6)=8),elosu1+6,\"\"))","v":"2022-08-06"},{"$f":"IF(DAY(elosu1)=1,IF(AND(YEAR(elosu1)=Kalenterivuosi,MONTH(elosu1)=8),elosu1,\"\"),IF(AND(YEAR(elosu1+7)=Kalenterivuosi,MONTH(elosu1+7)=8),elosu1+7,\"\"))","v":"2022-08-07"}]
[null,null,{"$f":"IF(DAY(heinäsu1)=1,IF(AND(YEAR(heinäsu1+1)=Kalenterivuosi,MONTH(heinäsu1+1)=7),heinäsu1+1,\"\"),IF(AND(YEAR(heinäsu1+8)=Kalenterivuosi,MONTH(heinäsu1+8)=7),heinäsu1+8,\"\"))","v":"2022-07-04"},{"$f":"IF(DAY(heinäsu1)=1,IF(AND(YEAR(heinäsu1+2)=Kalenterivuosi,MONTH(heinäsu1+2)=7),heinäsu1+2,\"\"),IF(AND(YEAR(heinäsu1+9)=Kalenterivuosi,MONTH(heinäsu1+9)=7),heinäsu1+9,\"\"))","v":"2022-07-05"},{"$f":"IF(DAY(heinäsu1)=1,IF(AND(YEAR(heinäsu1+3)=Kalenterivuosi,MONTH(heinäsu1+3)=7),heinäsu1+3,\"\"),IF(AND(YEAR(heinäsu1+10)=Kalenterivuosi,MONTH(heinäsu1+10)=7),heinäsu1+10,\"\"))","v":"2022-07-06"},{"$f":"IF(DAY(heinäsu1)=1,IF(AND(YEAR(heinäsu1+4)=Kalenterivuosi,MONTH(heinäsu1+4)=7),heinäsu1+4,\"\"),IF(AND(YEAR(heinäsu1+11)=Kalenterivuosi,MONTH(heinäsu1+11)=7),heinäsu1+11,\"\"))","v":"2022-07-07"},{"$f":"IF(DAY(heinäsu1)=1,IF(AND(YEAR(heinäsu1+5)=Kalenterivuosi,MONTH(heinäsu1+5)=7),heinäsu1+5,\"\"),IF(AND(YEAR(heinäsu1+12)=Kalenterivuosi,MONTH(heinäsu1+12)=7),heinäsu1+12,\"\"))","v":"2022-07-08"},{"$f":"IF(DAY(heinäsu1)=1,IF(AND(YEAR(heinäsu1+6)=Kalenterivuosi,MONTH(heinäsu1+6)=7),heinäsu1+6,\"\"),IF(AND(YEAR(heinäsu1+13)=Kalenterivuosi,MONTH(heinäsu1+13)=7),heinäsu1+13,\"\"))","v":"2022-07-09"},{"$f":"IF(DAY(heinäsu1)=1,IF(AND(YEAR(heinäsu1+7)=Kalenterivuosi,MONTH(heinäsu1+7)=7),heinäsu1+7,\"\"),IF(AND(YEAR(heinäsu1+14)=Kalenterivuosi,MONTH(heinäsu1+14)=7),heinäsu1+14,\"\"))","v":"2022-07-10"},null,{"$f":"IF(DAY(elosu1)=1,IF(AND(YEAR(elosu1+1)=Kalenterivuosi,MONTH(elosu1+1)=8),elosu1+1,\"\"),IF(AND(YEAR(elosu1+8)=Kalenterivuosi,MONTH(elosu1+8)=8),elosu1+8,\"\"))","v":"2022-08-08"},{"$f":"IF(DAY(elosu1)=1,IF(AND(YEAR(elosu1+2)=Kalenterivuosi,MONTH(elosu1+2)=8),elosu1+2,\"\"),IF(AND(YEAR(elosu1+9)=Kalenterivuosi,MONTH(elosu1+9)=8),elosu1+9,\"\"))","v":"2022-08-09"},{"$f":"IF(DAY(elosu1)=1,IF(AND(YEAR(elosu1+3)=Kalenterivuosi,MONTH(elosu1+3)=8),elosu1+3,\"\"),IF(AND(YEAR(elosu1+10)=Kalenterivuosi,MONTH(elosu1+10)=8),elosu1+10,\"\"))","v":"2022-08-10"},{"$f":"IF(DAY(elosu1)=1,IF(AND(YEAR(elosu1+4)=Kalenterivuosi,MONTH(elosu1+4)=8),elosu1+4,\"\"),IF(AND(YEAR(elosu1+11)=Kalenterivuosi,MONTH(elosu1+11)=8),elosu1+11,\"\"))","v":"2022-08-11"},{"$f":"IF(DAY(elosu1)=1,IF(AND(YEAR(elosu1+5)=Kalenterivuosi,MONTH(elosu1+5)=8),elosu1+5,\"\"),IF(AND(YEAR(elosu1+12)=Kalenterivuosi,MONTH(elosu1+12)=8),elosu1+12,\"\"))","v":"2022-08-12"},{"$f":"IF(DAY(elosu1)=1,IF(AND(YEAR(elosu1+6)=Kalenterivuosi,MONTH(elosu1+6)=8),elosu1+6,\"\"),IF(AND(YEAR(elosu1+13)=Kalenterivuosi,MONTH(elosu1+13)=8),elosu1+13,\"\"))","v":"2022-08-13"},{"$f":"IF(DAY(elosu1)=1,IF(AND(YEAR(elosu1+7)=Kalenterivuosi,MONTH(elosu1+7)=8),elosu1+7,\"\"),IF(AND(YEAR(elosu1+14)=Kalenterivuosi,MONTH(elosu1+14)=8),elosu1+14,\"\"))","v":"2022-08-14"}]
[null,null,{"$f":"IF(DAY(heinäsu1)=1,IF(AND(YEAR(heinäsu1+8)=Kalenterivuosi,MONTH(heinäsu1+8)=7),heinäsu1+8,\"\"),IF(AND(YEAR(heinäsu1+15)=Kalenterivuosi,MONTH(heinäsu1+15)=7),heinäsu1+15,\"\"))","v":"2022-07-11"},{"$f":"IF(DAY(heinäsu1)=1,IF(AND(YEAR(heinäsu1+9)=Kalenterivuosi,MONTH(heinäsu1+9)=7),heinäsu1+9,\"\"),IF(AND(YEAR(heinäsu1+16)=Kalenterivuosi,MONTH(heinäsu1+16)=7),heinäsu1+16,\"\"))","v":"2022-07-12"},{"$f":"IF(DAY(heinäsu1)=1,IF(AND(YEAR(heinäsu1+10)=Kalenterivuosi,MONTH(heinäsu1+10)=7),heinäsu1+10,\"\"),IF(AND(YEAR(heinäsu1+17)=Kalenterivuosi,MONTH(heinäsu1+17)=7),heinäsu1+17,\"\"))","v":"2022-07-13"},{"$f":"IF(DAY(heinäsu1)=1,IF(AND(YEAR(heinäsu1+11)=Kalenterivuosi,MONTH(heinäsu1+11)=7),heinäsu1+11,\"\"),IF(AND(YEAR(heinäsu1+18)=Kalenterivuosi,MONTH(heinäsu1+18)=7),heinäsu1+18,\"\"))","v":"2022-07-14"},{"$f":"IF(DAY(heinäsu1)=1,IF(AND(YEAR(heinäsu1+12)=Kalenterivuosi,MONTH(heinäsu1+12)=7),heinäsu1+12,\"\"),IF(AND(YEAR(heinäsu1+19)=Kalenterivuosi,MONTH(heinäsu1+19)=7),heinäsu1+19,\"\"))","v":"2022-07-15"},{"$f":"IF(DAY(heinäsu1)=1,IF(AND(YEAR(heinäsu1+13)=Kalenterivuosi,MONTH(heinäsu1+13)=7),heinäsu1+13,\"\"),IF(AND(YEAR(heinäsu1+20)=Kalenterivuosi,MONTH(heinäsu1+20)=7),heinäsu1+20,\"\"))","v":"2022-07-16"},{"$f":"IF(DAY(heinäsu1)=1,IF(AND(YEAR(heinäsu1+14)=Kalenterivuosi,MONTH(heinäsu1+14)=7),heinäsu1+14,\"\"),IF(AND(YEAR(heinäsu1+21)=Kalenterivuosi,MONTH(heinäsu1+21)=7),heinäsu1+21,\"\"))","v":"2022-07-17"},null,{"$f":"IF(DAY(elosu1)=1,IF(AND(YEAR(elosu1+8)=Kalenterivuosi,MONTH(elosu1+8)=8),elosu1+8,\"\"),IF(AND(YEAR(elosu1+15)=Kalenterivuosi,MONTH(elosu1+15)=8),elosu1+15,\"\"))","v":"2022-08-15"},{"$f":"IF(DAY(elosu1)=1,IF(AND(YEAR(elosu1+9)=Kalenterivuosi,MONTH(elosu1+9)=8),elosu1+9,\"\"),IF(AND(YEAR(elosu1+16)=Kalenterivuosi,MONTH(elosu1+16)=8),elosu1+16,\"\"))","v":"2022-08-16"},{"$f":"IF(DAY(elosu1)=1,IF(AND(YEAR(elosu1+10)=Kalenterivuosi,MONTH(elosu1+10)=8),elosu1+10,\"\"),IF(AND(YEAR(elosu1+17)=Kalenterivuosi,MONTH(elosu1+17)=8),elosu1+17,\"\"))","v":"2022-08-17"},{"$f":"IF(DAY(elosu1)=1,IF(AND(YEAR(elosu1+11)=Kalenterivuosi,MONTH(elosu1+11)=8),elosu1+11,\"\"),IF(AND(YEAR(elosu1+18)=Kalenterivuosi,MONTH(elosu1+18)=8),elosu1+18,\"\"))","v":"2022-08-18"},{"$f":"IF(DAY(elosu1)=1,IF(AND(YEAR(elosu1+12)=Kalenterivuosi,MONTH(elosu1+12)=8),elosu1+12,\"\"),IF(AND(YEAR(elosu1+19)=Kalenterivuosi,MONTH(elosu1+19)=8),elosu1+19,\"\"))","v":"2022-08-19"},{"$f":"IF(DAY(elosu1)=1,IF(AND(YEAR(elosu1+13)=Kalenterivuosi,MONTH(elosu1+13)=8),elosu1+13,\"\"),IF(AND(YEAR(elosu1+20)=Kalenterivuosi,MONTH(elosu1+20)=8),elosu1+20,\"\"))","v":"2022-08-20"},{"$f":"IF(DAY(elosu1)=1,IF(AND(YEAR(elosu1+14)=Kalenterivuosi,MONTH(elosu1+14)=8),elosu1+14,\"\"),IF(AND(YEAR(elosu1+21)=Kalenterivuosi,MONTH(elosu1+21)=8),elosu1+21,\"\"))","v":"2022-08-21"}]
[null,null,{"$f":"IF(DAY(heinäsu1)=1,IF(AND(YEAR(heinäsu1+15)=Kalenterivuosi,MONTH(heinäsu1+15)=7),heinäsu1+15,\"\"),IF(AND(YEAR(heinäsu1+22)=Kalenterivuosi,MONTH(heinäsu1+22)=7),heinäsu1+22,\"\"))","v":"2022-07-18"},{"$f":"IF(DAY(heinäsu1)=1,IF(AND(YEAR(heinäsu1+16)=Kalenterivuosi,MONTH(heinäsu1+16)=7),heinäsu1+16,\"\"),IF(AND(YEAR(heinäsu1+23)=Kalenterivuosi,MONTH(heinäsu1+23)=7),heinäsu1+23,\"\"))","v":"2022-07-19"},{"$f":"IF(DAY(heinäsu1)=1,IF(AND(YEAR(heinäsu1+17)=Kalenterivuosi,MONTH(heinäsu1+17)=7),heinäsu1+17,\"\"),IF(AND(YEAR(heinäsu1+24)=Kalenterivuosi,MONTH(heinäsu1+24)=7),heinäsu1+24,\"\"))","v":"2022-07-20"},{"$f":"IF(DAY(heinäsu1)=1,IF(AND(YEAR(heinäsu1+18)=Kalenterivuosi,MONTH(heinäsu1+18)=7),heinäsu1+18,\"\"),IF(AND(YEAR(heinäsu1+25)=Kalenterivuosi,MONTH(heinäsu1+25)=7),heinäsu1+25,\"\"))","v":"2022-07-21"},{"$f":"IF(DAY(heinäsu1)=1,IF(AND(YEAR(heinäsu1+19)=Kalenterivuosi,MONTH(heinäsu1+19)=7),heinäsu1+19,\"\"),IF(AND(YEAR(heinäsu1+26)=Kalenterivuosi,MONTH(heinäsu1+26)=7),heinäsu1+26,\"\"))","v":"2022-07-22"},{"$f":"IF(DAY(heinäsu1)=1,IF(AND(YEAR(heinäsu1+20)=Kalenterivuosi,MONTH(heinäsu1+20)=7),heinäsu1+20,\"\"),IF(AND(YEAR(heinäsu1+27)=Kalenterivuosi,MONTH(heinäsu1+27)=7),heinäsu1+27,\"\"))","v":"2022-07-23"},{"$f":"IF(DAY(heinäsu1)=1,IF(AND(YEAR(heinäsu1+21)=Kalenterivuosi,MONTH(heinäsu1+21)=7),heinäsu1+21,\"\"),IF(AND(YEAR(heinäsu1+28)=Kalenterivuosi,MONTH(heinäsu1+28)=7),heinäsu1+28,\"\"))","v":"2022-07-24"},null,{"$f":"IF(DAY(elosu1)=1,IF(AND(YEAR(elosu1+15)=Kalenterivuosi,MONTH(elosu1+15)=8),elosu1+15,\"\"),IF(AND(YEAR(elosu1+22)=Kalenterivuosi,MONTH(elosu1+22)=8),elosu1+22,\"\"))","v":"2022-08-22"},{"$f":"IF(DAY(elosu1)=1,IF(AND(YEAR(elosu1+16)=Kalenterivuosi,MONTH(elosu1+16)=8),elosu1+16,\"\"),IF(AND(YEAR(elosu1+23)=Kalenterivuosi,MONTH(elosu1+23)=8),elosu1+23,\"\"))","v":"2022-08-23"},{"$f":"IF(DAY(elosu1)=1,IF(AND(YEAR(elosu1+17)=Kalenterivuosi,MONTH(elosu1+17)=8),elosu1+17,\"\"),IF(AND(YEAR(elosu1+24)=Kalenterivuosi,MONTH(elosu1+24)=8),elosu1+24,\"\"))","v":"2022-08-24"},{"$f":"IF(DAY(elosu1)=1,IF(AND(YEAR(elosu1+18)=Kalenterivuosi,MONTH(elosu1+18)=8),elosu1+18,\"\"),IF(AND(YEAR(elosu1+25)=Kalenterivuosi,MONTH(elosu1+25)=8),elosu1+25,\"\"))","v":"2022-08-25"},{"$f":"IF(DAY(elosu1)=1,IF(AND(YEAR(elosu1+19)=Kalenterivuosi,MONTH(elosu1+19)=8),elosu1+19,\"\"),IF(AND(YEAR(elosu1+26)=Kalenterivuosi,MONTH(elosu1+26)=8),elosu1+26,\"\"))","v":"2022-08-26"},{"$f":"IF(DAY(elosu1)=1,IF(AND(YEAR(elosu1+20)=Kalenterivuosi,MONTH(elosu1+20)=8),elosu1+20,\"\"),IF(AND(YEAR(elosu1+27)=Kalenterivuosi,MONTH(elosu1+27)=8),elosu1+27,\"\"))","v":"2022-08-27"},{"$f":"IF(DAY(elosu1)=1,IF(AND(YEAR(elosu1+21)=Kalenterivuosi,MONTH(elosu1+21)=8),elosu1+21,\"\"),IF(AND(YEAR(elosu1+28)=Kalenterivuosi,MONTH(elosu1+28)=8),elosu1+28,\"\"))","v":"2022-08-28"}]
[null,null,{"$f":"IF(DAY(heinäsu1)=1,IF(AND(YEAR(heinäsu1+22)=Kalenterivuosi,MONTH(heinäsu1+22)=7),heinäsu1+22,\"\"),IF(AND(YEAR(heinäsu1+29)=Kalenterivuosi,MONTH(heinäsu1+29)=7),heinäsu1+29,\"\"))","v":"2022-07-25"},{"$f":"IF(DAY(heinäsu1)=1,IF(AND(YEAR(heinäsu1+23)=Kalenterivuosi,MONTH(heinäsu1+23)=7),heinäsu1+23,\"\"),IF(AND(YEAR(heinäsu1+30)=Kalenterivuosi,MONTH(heinäsu1+30)=7),heinäsu1+30,\"\"))","v":"2022-07-26"},{"$f":"IF(DAY(heinäsu1)=1,IF(AND(YEAR(heinäsu1+24)=Kalenterivuosi,MONTH(heinäsu1+24)=7),heinäsu1+24,\"\"),IF(AND(YEAR(heinäsu1+31)=Kalenterivuosi,MONTH(heinäsu1+31)=7),heinäsu1+31,\"\"))","v":"2022-07-27"},{"$f":"IF(DAY(heinäsu1)=1,IF(AND(YEAR(heinäsu1+25)=Kalenterivuosi,MONTH(heinäsu1+25)=7),heinäsu1+25,\"\"),IF(AND(YEAR(heinäsu1+32)=Kalenterivuosi,MONTH(heinäsu1+32)=7),heinäsu1+32,\"\"))","v":"2022-07-28"},{"$f":"IF(DAY(heinäsu1)=1,IF(AND(YEAR(heinäsu1+26)=Kalenterivuosi,MONTH(heinäsu1+26)=7),heinäsu1+26,\"\"),IF(AND(YEAR(heinäsu1+33)=Kalenterivuosi,MONTH(heinäsu1+33)=7),heinäsu1+33,\"\"))","v":"2022-07-29"},{"$f":"IF(DAY(heinäsu1)=1,IF(AND(YEAR(heinäsu1+27)=Kalenterivuosi,MONTH(heinäsu1+27)=7),heinäsu1+27,\"\"),IF(AND(YEAR(heinäsu1+34)=Kalenterivuosi,MONTH(heinäsu1+34)=7),heinäsu1+34,\"\"))","v":"2022-07-30"},{"$f":"IF(DAY(heinäsu1)=1,IF(AND(YEAR(heinäsu1+28)=Kalenterivuosi,MONTH(heinäsu1+28)=7),heinäsu1+28,\"\"),IF(AND(YEAR(heinäsu1+35)=Kalenterivuosi,MONTH(heinäsu1+35)=7),heinäsu1+35,\"\"))","v":"2022-07-31"},null,{"$f":"IF(DAY(elosu1)=1,IF(AND(YEAR(elosu1+22)=Kalenterivuosi,MONTH(elosu1+22)=8),elosu1+22,\"\"),IF(AND(YEAR(elosu1+29)=Kalenterivuosi,MONTH(elosu1+29)=8),elosu1+29,\"\"))","v":"2022-08-29"},{"$f":"IF(DAY(elosu1)=1,IF(AND(YEAR(elosu1+23)=Kalenterivuosi,MONTH(elosu1+23)=8),elosu1+23,\"\"),IF(AND(YEAR(elosu1+30)=Kalenterivuosi,MONTH(elosu1+30)=8),elosu1+30,\"\"))","v":"2022-08-30"},{"$f":"IF(DAY(elosu1)=1,IF(AND(YEAR(elosu1+24)=Kalenterivuosi,MONTH(elosu1+24)=8),elosu1+24,\"\"),IF(AND(YEAR(elosu1+31)=Kalenterivuosi,MONTH(elosu1+31)=8),elosu1+31,\"\"))","v":"2022-08-31"},{"$f":"IF(DAY(elosu1)=1,IF(AND(YEAR(elosu1+25)=Kalenterivuosi,MONTH(elosu1+25)=8),elosu1+25,\"\"),IF(AND(YEAR(elosu1+32)=Kalenterivuosi,MONTH(elosu1+32)=8),elosu1+32,\"\"))","v":""},{"$f":"IF(DAY(elosu1)=1,IF(AND(YEAR(elosu1+26)=Kalenterivuosi,MONTH(elosu1+26)=8),elosu1+26,\"\"),IF(AND(YEAR(elosu1+33)=Kalenterivuosi,MONTH(elosu1+33)=8),elosu1+33,\"\"))","v":""},{"$f":"IF(DAY(elosu1)=1,IF(AND(YEAR(elosu1+27)=Kalenterivuosi,MONTH(elosu1+27)=8),elosu1+27,\"\"),IF(AND(YEAR(elosu1+34)=Kalenterivuosi,MONTH(elosu1+34)=8),elosu1+34,\"\"))","v":""},{"$f":"IF(DAY(elosu1)=1,IF(AND(YEAR(elosu1+28)=Kalenterivuosi,MONTH(elosu1+28)=8),elosu1+28,\"\"),IF(AND(YEAR(elosu1+35)=Kalenterivuosi,MONTH(elosu1+35)=8),elosu1+35,\"\"))","v":""}]
[null,null,{"$f":"IF(DAY(heinäsu1)=1,IF(AND(YEAR(heinäsu1+29)=Kalenterivuosi,MONTH(heinäsu1+29)=7),heinäsu1+29,\"\"),IF(AND(YEAR(heinäsu1+36)=Kalenterivuosi,MONTH(heinäsu1+36)=7),heinäsu1+36,\"\"))","v":""},{"$f":"IF(DAY(heinäsu1)=1,IF(AND(YEAR(heinäsu1+30)=Kalenterivuosi,MONTH(heinäsu1+30)=7),heinäsu1+30,\"\"),IF(AND(YEAR(heinäsu1+37)=Kalenterivuosi,MONTH(heinäsu1+37)=7),heinäsu1+37,\"\"))","v":""},{"$f":"IF(DAY(heinäsu1)=1,IF(AND(YEAR(heinäsu1+31)=Kalenterivuosi,MONTH(heinäsu1+31)=7),heinäsu1+31,\"\"),IF(AND(YEAR(heinäsu1+38)=Kalenterivuosi,MONTH(heinäsu1+38)=7),heinäsu1+38,\"\"))","v":""},{"$f":"IF(DAY(heinäsu1)=1,IF(AND(YEAR(heinäsu1+32)=Kalenterivuosi,MONTH(heinäsu1+32)=7),heinäsu1+32,\"\"),IF(AND(YEAR(heinäsu1+39)=Kalenterivuosi,MONTH(heinäsu1+39)=7),heinäsu1+39,\"\"))","v":""},{"$f":"IF(DAY(heinäsu1)=1,IF(AND(YEAR(heinäsu1+33)=Kalenterivuosi,MONTH(heinäsu1+33)=7),heinäsu1+33,\"\"),IF(AND(YEAR(heinäsu1+40)=Kalenterivuosi,MONTH(heinäsu1+40)=7),heinäsu1+40,\"\"))","v":""},{"$f":"IF(DAY(heinäsu1)=1,IF(AND(YEAR(heinäsu1+34)=Kalenterivuosi,MONTH(heinäsu1+34)=7),heinäsu1+34,\"\"),IF(AND(YEAR(heinäsu1+41)=Kalenterivuosi,MONTH(heinäsu1+41)=7),heinäsu1+41,\"\"))","v":""},{"$f":"IF(DAY(heinäsu1)=1,IF(AND(YEAR(heinäsu1+35)=Kalenterivuosi,MONTH(heinäsu1+35)=7),heinäsu1+35,\"\"),IF(AND(YEAR(heinäsu1+42)=Kalenterivuosi,MONTH(heinäsu1+42)=7),heinäsu1+42,\"\"))","v":""},null,{"$f":"IF(DAY(elosu1)=1,IF(AND(YEAR(elosu1+29)=Kalenterivuosi,MONTH(elosu1+29)=8),elosu1+29,\"\"),IF(AND(YEAR(elosu1+36)=Kalenterivuosi,MONTH(elosu1+36)=8),elosu1+36,\"\"))","v":""},{"$f":"IF(DAY(elosu1)=1,IF(AND(YEAR(elosu1+30)=Kalenterivuosi,MONTH(elosu1+30)=8),elosu1+30,\"\"),IF(AND(YEAR(elosu1+37)=Kalenterivuosi,MONTH(elosu1+37)=8),elosu1+37,\"\"))","v":""},{"$f":"IF(DAY(elosu1)=1,IF(AND(YEAR(elosu1+31)=Kalenterivuosi,MONTH(elosu1+31)=8),elosu1+31,\"\"),IF(AND(YEAR(elosu1+38)=Kalenterivuosi,MONTH(elosu1+38)=8),elosu1+38,\"\"))","v":""},{"$f":"IF(DAY(elosu1)=1,IF(AND(YEAR(elosu1+32)=Kalenterivuosi,MONTH(elosu1+32)=8),elosu1+32,\"\"),IF(AND(YEAR(elosu1+39)=Kalenterivuosi,MONTH(elosu1+39)=8),elosu1+39,\"\"))","v":""},{"$f":"IF(DAY(elosu1)=1,IF(AND(YEAR(elosu1+33)=Kalenterivuosi,MONTH(elosu1+33)=8),elosu1+33,\"\"),IF(AND(YEAR(elosu1+40)=Kalenterivuosi,MONTH(elosu1+40)=8),elosu1+40,\"\"))","v":""},{"$f":"IF(DAY(elosu1)=1,IF(AND(YEAR(elosu1+34)=Kalenterivuosi,MONTH(elosu1+34)=8),elosu1+34,\"\"),IF(AND(YEAR(elosu1+41)=Kalenterivuosi,MONTH(elosu1+41)=8),elosu1+41,\"\"))","v":""},{"$f":"IF(DAY(elosu1)=1,IF(AND(YEAR(elosu1+35)=Kalenterivuosi,MONTH(elosu1+35)=8),elosu1+35,\"\"),IF(AND(YEAR(elosu1+42)=Kalenterivuosi,MONTH(elosu1+42)=8),elosu1+42,\"\"))","v":""}]
[]
["Syyskuun otsikko on solussa C39 ja lokakuun solussa K39",null,"SYYSKUU",{"$nulls":7},"LOKAKUU"]
["Syyskuun kalenteritaulukko on soluissa C40–Q46 ja lokakuun kalenteri soluissa K40–Q46. Seuraava ohje on solussa A44",null,"MA","TI","KE","TO","PE","LA","SU",null,"MA","TI","KE","TO","PE","LA","SU"]
[null,null,{"$f":"IF(DAY(syyssu1)=1,\"\",IF(AND(YEAR(syyssu1+1)=Kalenterivuosi,MONTH(syyssu1+1)=9),syyssu1+1,\"\"))","v":""},{"$f":"IF(DAY(syyssu1)=1,\"\",IF(AND(YEAR(syyssu1+2)=Kalenterivuosi,MONTH(syyssu1+2)=9),syyssu1+2,\"\"))","v":""},{"$f":"IF(DAY(syyssu1)=1,\"\",IF(AND(YEAR(syyssu1+3)=Kalenterivuosi,MONTH(syyssu1+3)=9),syyssu1+3,\"\"))","v":""},{"$f":"IF(DAY(syyssu1)=1,\"\",IF(AND(YEAR(syyssu1+4)=Kalenterivuosi,MONTH(syyssu1+4)=9),syyssu1+4,\"\"))","v":"2022-09-01"},{"$f":"IF(DAY(syyssu1)=1,\"\",IF(AND(YEAR(syyssu1+5)=Kalenterivuosi,MONTH(syyssu1+5)=9),syyssu1+5,\"\"))","v":"2022-09-02"},{"$f":"IF(DAY(syyssu1)=1,\"\",IF(AND(YEAR(syyssu1+6)=Kalenterivuosi,MONTH(syyssu1+6)=9),syyssu1+6,\"\"))","v":"2022-09-03"},{"$f":"IF(DAY(syyssu1)=1,IF(AND(YEAR(syyssu1)=Kalenterivuosi,MONTH(syyssu1)=9),syyssu1,\"\"),IF(AND(YEAR(syyssu1+7)=Kalenterivuosi,MONTH(syyssu1+7)=9),syyssu1+7,\"\"))","v":"2022-09-04"},null,{"$f":"IF(DAY(lokasu1)=1,\"\",IF(AND(YEAR(lokasu1+1)=Kalenterivuosi,MONTH(lokasu1+1)=10),lokasu1+1,\"\"))","v":""},{"$f":"IF(DAY(lokasu1)=1,\"\",IF(AND(YEAR(lokasu1+2)=Kalenterivuosi,MONTH(lokasu1+2)=10),lokasu1+2,\"\"))","v":""},{"$f":"IF(DAY(lokasu1)=1,\"\",IF(AND(YEAR(lokasu1+3)=Kalenterivuosi,MONTH(lokasu1+3)=10),lokasu1+3,\"\"))","v":""},{"$f":"IF(DAY(lokasu1)=1,\"\",IF(AND(YEAR(lokasu1+4)=Kalenterivuosi,MONTH(lokasu1+4)=10),lokasu1+4,\"\"))","v":""},{"$f":"IF(DAY(lokasu1)=1,\"\",IF(AND(YEAR(lokasu1+5)=Kalenterivuosi,MONTH(lokasu1+5)=10),lokasu1+5,\"\"))","v":""},{"$f":"IF(DAY(lokasu1)=1,\"\",IF(AND(YEAR(lokasu1+6)=Kalenterivuosi,MONTH(lokasu1+6)=10),lokasu1+6,\"\"))","v":"2022-10-01"},{"$f":"IF(DAY(lokasu1)=1,IF(AND(YEAR(lokasu1)=Kalenterivuosi,MONTH(lokasu1)=10),lokasu1,\"\"),IF(AND(YEAR(lokasu1+7)=Kalenterivuosi,MONTH(lokasu1+7)=10),lokasu1+7,\"\"))","v":"2022-10-02"}]
[null,null,{"$f":"IF(DAY(syyssu1)=1,IF(AND(YEAR(syyssu1+1)=Kalenterivuosi,MONTH(syyssu1+1)=9),syyssu1+1,\"\"),IF(AND(YEAR(syyssu1+8)=Kalenterivuosi,MONTH(syyssu1+8)=9),syyssu1+8,\"\"))","v":"2022-09-05"},{"$f":"IF(DAY(syyssu1)=1,IF(AND(YEAR(syyssu1+2)=Kalenterivuosi,MONTH(syyssu1+2)=9),syyssu1+2,\"\"),IF(AND(YEAR(syyssu1+9)=Kalenterivuosi,MONTH(syyssu1+9)=9),syyssu1+9,\"\"))","v":"2022-09-06"},{"$f":"IF(DAY(syyssu1)=1,IF(AND(YEAR(syyssu1+3)=Kalenterivuosi,MONTH(syyssu1+3)=9),syyssu1+3,\"\"),IF(AND(YEAR(syyssu1+10)=Kalenterivuosi,MONTH(syyssu1+10)=9),syyssu1+10,\"\"))","v":"2022-09-07"},{"$f":"IF(DAY(syyssu1)=1,IF(AND(YEAR(syyssu1+4)=Kalenterivuosi,MONTH(syyssu1+4)=9),syyssu1+4,\"\"),IF(AND(YEAR(syyssu1+11)=Kalenterivuosi,MONTH(syyssu1+11)=9),syyssu1+11,\"\"))","v":"2022-09-08"},{"$f":"IF(DAY(syyssu1)=1,IF(AND(YEAR(syyssu1+5)=Kalenterivuosi,MONTH(syyssu1+5)=9),syyssu1+5,\"\"),IF(AND(YEAR(syyssu1+12)=Kalenterivuosi,MONTH(syyssu1+12)=9),syyssu1+12,\"\"))","v":"2022-09-09"},{"$f":"IF(DAY(syyssu1)=1,IF(AND(YEAR(syyssu1+6)=Kalenterivuosi,MONTH(syyssu1+6)=9),syyssu1+6,\"\"),IF(AND(YEAR(syyssu1+13)=Kalenterivuosi,MONTH(syyssu1+13)=9),syyssu1+13,\"\"))","v":"2022-09-10"},{"$f":"IF(DAY(syyssu1)=1,IF(AND(YEAR(syyssu1+7)=Kalenterivuosi,MONTH(syyssu1+7)=9),syyssu1+7,\"\"),IF(AND(YEAR(syyssu1+14)=Kalenterivuosi,MONTH(syyssu1+14)=9),syyssu1+14,\"\"))","v":"2022-09-11"},null,{"$f":"IF(DAY(lokasu1)=1,IF(AND(YEAR(lokasu1+1)=Kalenterivuosi,MONTH(lokasu1+1)=10),lokasu1+1,\"\"),IF(AND(YEAR(lokasu1+8)=Kalenterivuosi,MONTH(lokasu1+8)=10),lokasu1+8,\"\"))","v":"2022-10-03"},{"$f":"IF(DAY(lokasu1)=1,IF(AND(YEAR(lokasu1+2)=Kalenterivuosi,MONTH(lokasu1+2)=10),lokasu1+2,\"\"),IF(AND(YEAR(lokasu1+9)=Kalenterivuosi,MONTH(lokasu1+9)=10),lokasu1+9,\"\"))","v":"2022-10-04"},{"$f":"IF(DAY(lokasu1)=1,IF(AND(YEAR(lokasu1+3)=Kalenterivuosi,MONTH(lokasu1+3)=10),lokasu1+3,\"\"),IF(AND(YEAR(lokasu1+10)=Kalenterivuosi,MONTH(lokasu1+10)=10),lokasu1+10,\"\"))","v":"2022-10-05"},{"$f":"IF(DAY(lokasu1)=1,IF(AND(YEAR(lokasu1+4)=Kalenterivuosi,MONTH(lokasu1+4)=10),lokasu1+4,\"\"),IF(AND(YEAR(lokasu1+11)=Kalenterivuosi,MONTH(lokasu1+11)=10),lokasu1+11,\"\"))","v":"2022-10-06"},{"$f":"IF(DAY(lokasu1)=1,IF(AND(YEAR(lokasu1+5)=Kalenterivuosi,MONTH(lokasu1+5)=10),lokasu1+5,\"\"),IF(AND(YEAR(lokasu1+12)=Kalenterivuosi,MONTH(lokasu1+12)=10),lokasu1+12,\"\"))","v":"2022-10-07"},{"$f":"IF(DAY(lokasu1)=1,IF(AND(YEAR(lokasu1+6)=Kalenterivuosi,MONTH(lokasu1+6)=10),lokasu1+6,\"\"),IF(AND(YEAR(lokasu1+13)=Kalenterivuosi,MONTH(lokasu1+13)=10),lokasu1+13,\"\"))","v":"2022-10-08"},{"$f":"IF(DAY(lokasu1)=1,IF(AND(YEAR(lokasu1+7)=Kalenterivuosi,MONTH(lokasu1+7)=10),lokasu1+7,\"\"),IF(AND(YEAR(lokasu1+14)=Kalenterivuosi,MONTH(lokasu1+14)=10),lokasu1+14,\"\"))","v":"2022-10-09"}]
[null,null,{"$f":"IF(DAY(syyssu1)=1,IF(AND(YEAR(syyssu1+8)=Kalenterivuosi,MONTH(syyssu1+8)=9),syyssu1+8,\"\"),IF(AND(YEAR(syyssu1+15)=Kalenterivuosi,MONTH(syyssu1+15)=9),syyssu1+15,\"\"))","v":"2022-09-12"},{"$f":"IF(DAY(syyssu1)=1,IF(AND(YEAR(syyssu1+9)=Kalenterivuosi,MONTH(syyssu1+9)=9),syyssu1+9,\"\"),IF(AND(YEAR(syyssu1+16)=Kalenterivuosi,MONTH(syyssu1+16)=9),syyssu1+16,\"\"))","v":"2022-09-13"},{"$f":"IF(DAY(syyssu1)=1,IF(AND(YEAR(syyssu1+10)=Kalenterivuosi,MONTH(syyssu1+10)=9),syyssu1+10,\"\"),IF(AND(YEAR(syyssu1+17)=Kalenterivuosi,MONTH(syyssu1+17)=9),syyssu1+17,\"\"))","v":"2022-09-14"},{"$f":"IF(DAY(syyssu1)=1,IF(AND(YEAR(syyssu1+11)=Kalenterivuosi,MONTH(syyssu1+11)=9),syyssu1+11,\"\"),IF(AND(YEAR(syyssu1+18)=Kalenterivuosi,MONTH(syyssu1+18)=9),syyssu1+18,\"\"))","v":"2022-09-15"},{"$f":"IF(DAY(syyssu1)=1,IF(AND(YEAR(syyssu1+12)=Kalenterivuosi,MONTH(syyssu1+12)=9),syyssu1+12,\"\"),IF(AND(YEAR(syyssu1+19)=Kalenterivuosi,MONTH(syyssu1+19)=9),syyssu1+19,\"\"))","v":"2022-09-16"},{"$f":"IF(DAY(syyssu1)=1,IF(AND(YEAR(syyssu1+13)=Kalenterivuosi,MONTH(syyssu1+13)=9),syyssu1+13,\"\"),IF(AND(YEAR(syyssu1+20)=Kalenterivuosi,MONTH(syyssu1+20)=9),syyssu1+20,\"\"))","v":"2022-09-17"},{"$f":"IF(DAY(syyssu1)=1,IF(AND(YEAR(syyssu1+14)=Kalenterivuosi,MONTH(syyssu1+14)=9),syyssu1+14,\"\"),IF(AND(YEAR(syyssu1+21)=Kalenterivuosi,MONTH(syyssu1+21)=9),syyssu1+21,\"\"))","v":"2022-09-18"},null,{"$f":"IF(DAY(lokasu1)=1,IF(AND(YEAR(lokasu1+8)=Kalenterivuosi,MONTH(lokasu1+8)=10),lokasu1+8,\"\"),IF(AND(YEAR(lokasu1+15)=Kalenterivuosi,MONTH(lokasu1+15)=10),lokasu1+15,\"\"))","v":"2022-10-10"},{"$f":"IF(DAY(lokasu1)=1,IF(AND(YEAR(lokasu1+9)=Kalenterivuosi,MONTH(lokasu1+9)=10),lokasu1+9,\"\"),IF(AND(YEAR(lokasu1+16)=Kalenterivuosi,MONTH(lokasu1+16)=10),lokasu1+16,\"\"))","v":"2022-10-11"},{"$f":"IF(DAY(lokasu1)=1,IF(AND(YEAR(lokasu1+10)=Kalenterivuosi,MONTH(lokasu1+10)=10),lokasu1+10,\"\"),IF(AND(YEAR(lokasu1+17)=Kalenterivuosi,MONTH(lokasu1+17)=10),lokasu1+17,\"\"))","v":"2022-10-12"},{"$f":"IF(DAY(lokasu1)=1,IF(AND(YEAR(lokasu1+11)=Kalenterivuosi,MONTH(lokasu1+11)=10),lokasu1+11,\"\"),IF(AND(YEAR(lokasu1+18)=Kalenterivuosi,MONTH(lokasu1+18)=10),lokasu1+18,\"\"))","v":"2022-10-13"},{"$f":"IF(DAY(lokasu1)=1,IF(AND(YEAR(lokasu1+12)=Kalenterivuosi,MONTH(lokasu1+12)=10),lokasu1+12,\"\"),IF(AND(YEAR(lokasu1+19)=Kalenterivuosi,MONTH(lokasu1+19)=10),lokasu1+19,\"\"))","v":"2022-10-14"},{"$f":"IF(DAY(lokasu1)=1,IF(AND(YEAR(lokasu1+13)=Kalenterivuosi,MONTH(lokasu1+13)=10),lokasu1+13,\"\"),IF(AND(YEAR(lokasu1+20)=Kalenterivuosi,MONTH(lokasu1+20)=10),lokasu1+20,\"\"))","v":"2022-10-15"},{"$f":"IF(DAY(lokasu1)=1,IF(AND(YEAR(lokasu1+14)=Kalenterivuosi,MONTH(lokasu1+14)=10),lokasu1+14,\"\"),IF(AND(YEAR(lokasu1+21)=Kalenterivuosi,MONTH(lokasu1+21)=10),lokasu1+21,\"\"))","v":"2022-10-16"}]
["Kirjoita katuosoite soluun U44",null,{"$f":"IF(DAY(syyssu1)=1,IF(AND(YEAR(syyssu1+15)=Kalenterivuosi,MONTH(syyssu1+15)=9),syyssu1+15,\"\"),IF(AND(YEAR(syyssu1+22)=Kalenterivuosi,MONTH(syyssu1+22)=9),syyssu1+22,\"\"))","v":"2022-09-19"},{"$f":"IF(DAY(syyssu1)=1,IF(AND(YEAR(syyssu1+16)=Kalenterivuosi,MONTH(syyssu1+16)=9),syyssu1+16,\"\"),IF(AND(YEAR(syyssu1+23)=Kalenterivuosi,MONTH(syyssu1+23)=9),syyssu1+23,\"\"))","v":"2022-09-20"},{"$f":"IF(DAY(syyssu1)=1,IF(AND(YEAR(syyssu1+17)=Kalenterivuosi,MONTH(syyssu1+17)=9),syyssu1+17,\"\"),IF(AND(YEAR(syyssu1+24)=Kalenterivuosi,MONTH(syyssu1+24)=9),syyssu1+24,\"\"))","v":"2022-09-21"},{"$f":"IF(DAY(syyssu1)=1,IF(AND(YEAR(syyssu1+18)=Kalenterivuosi,MONTH(syyssu1+18)=9),syyssu1+18,\"\"),IF(AND(YEAR(syyssu1+25)=Kalenterivuosi,MONTH(syyssu1+25)=9),syyssu1+25,\"\"))","v":"2022-09-22"},{"$f":"IF(DAY(syyssu1)=1,IF(AND(YEAR(syyssu1+19)=Kalenterivuosi,MONTH(syyssu1+19)=9),syyssu1+19,\"\"),IF(AND(YEAR(syyssu1+26)=Kalenterivuosi,MONTH(syyssu1+26)=9),syyssu1+26,\"\"))","v":"2022-09-23"},{"$f":"IF(DAY(syyssu1)=1,IF(AND(YEAR(syyssu1+20)=Kalenterivuosi,MONTH(syyssu1+20)=9),syyssu1+20,\"\"),IF(AND(YEAR(syyssu1+27)=Kalenterivuosi,MONTH(syyssu1+27)=9),syyssu1+27,\"\"))","v":"2022-09-24"},{"$f":"IF(DAY(syyssu1)=1,IF(AND(YEAR(syyssu1+21)=Kalenterivuosi,MONTH(syyssu1+21)=9),syyssu1+21,\"\"),IF(AND(YEAR(syyssu1+28)=Kalenterivuosi,MONTH(syyssu1+28)=9),syyssu1+28,\"\"))","v":"2022-09-25"},null,{"$f":"IF(DAY(lokasu1)=1,IF(AND(YEAR(lokasu1+15)=Kalenterivuosi,MONTH(lokasu1+15)=10),lokasu1+15,\"\"),IF(AND(YEAR(lokasu1+22)=Kalenterivuosi,MONTH(lokasu1+22)=10),lokasu1+22,\"\"))","v":"2022-10-17"},{"$f":"IF(DAY(lokasu1)=1,IF(AND(YEAR(lokasu1+16)=Kalenterivuosi,MONTH(lokasu1+16)=10),lokasu1+16,\"\"),IF(AND(YEAR(lokasu1+23)=Kalenterivuosi,MONTH(lokasu1+23)=10),lokasu1+23,\"\"))","v":"2022-10-18"},{"$f":"IF(DAY(lokasu1)=1,IF(AND(YEAR(lokasu1+17)=Kalenterivuosi,MONTH(lokasu1+17)=10),lokasu1+17,\"\"),IF(AND(YEAR(lokasu1+24)=Kalenterivuosi,MONTH(lokasu1+24)=10),lokasu1+24,\"\"))","v":"2022-10-19"},{"$f":"IF(DAY(lokasu1)=1,IF(AND(YEAR(lokasu1+18)=Kalenterivuosi,MONTH(lokasu1+18)=10),lokasu1+18,\"\"),IF(AND(YEAR(lokasu1+25)=Kalenterivuosi,MONTH(lokasu1+25)=10),lokasu1+25,\"\"))","v":"2022-10-20"},{"$f":"IF(DAY(lokasu1)=1,IF(AND(YEAR(lokasu1+19)=Kalenterivuosi,MONTH(lokasu1+19)=10),lokasu1+19,\"\"),IF(AND(YEAR(lokasu1+26)=Kalenterivuosi,MONTH(lokasu1+26)=10),lokasu1+26,\"\"))","v":"2022-10-21"},{"$f":"IF(DAY(lokasu1)=1,IF(AND(YEAR(lokasu1+20)=Kalenterivuosi,MONTH(lokasu1+20)=10),lokasu1+20,\"\"),IF(AND(YEAR(lokasu1+27)=Kalenterivuosi,MONTH(lokasu1+27)=10),lokasu1+27,\"\"))","v":"2022-10-22"},{"$f":"IF(DAY(lokasu1)=1,IF(AND(YEAR(lokasu1+21)=Kalenterivuosi,MONTH(lokasu1+21)=10),lokasu1+21,\"\"),IF(AND(YEAR(lokasu1+28)=Kalenterivuosi,MONTH(lokasu1+28)=10),lokasu1+28,\"\"))","v":"2022-10-23"},{"$nulls":3},"Katuosoite"]
["Kirjoita postinumero ja -toimipaikka soluun U45. Seuraava ohje on solussa A47",null,{"$f":"IF(DAY(syyssu1)=1,IF(AND(YEAR(syyssu1+22)=Kalenterivuosi,MONTH(syyssu1+22)=9),syyssu1+22,\"\"),IF(AND(YEAR(syyssu1+29)=Kalenterivuosi,MONTH(syyssu1+29)=9),syyssu1+29,\"\"))","v":"2022-09-26"},{"$f":"IF(DAY(syyssu1)=1,IF(AND(YEAR(syyssu1+23)=Kalenterivuosi,MONTH(syyssu1+23)=9),syyssu1+23,\"\"),IF(AND(YEAR(syyssu1+30)=Kalenterivuosi,MONTH(syyssu1+30)=9),syyssu1+30,\"\"))","v":"2022-09-27"},{"$f":"IF(DAY(syyssu1)=1,IF(AND(YEAR(syyssu1+24)=Kalenterivuosi,MONTH(syyssu1+24)=9),syyssu1+24,\"\"),IF(AND(YEAR(syyssu1+31)=Kalenterivuosi,MONTH(syyssu1+31)=9),syyssu1+31,\"\"))","v":"2022-09-28"},{"$f":"IF(DAY(syyssu1)=1,IF(AND(YEAR(syyssu1+25)=Kalenterivuosi,MONTH(syyssu1+25)=9),syyssu1+25,\"\"),IF(AND(YEAR(syyssu1+32)=Kalenterivuosi,MONTH(syyssu1+32)=9),syyssu1+32,\"\"))","v":"2022-09-29"},{"$f":"IF(DAY(syyssu1)=1,IF(AND(YEAR(syyssu1+26)=Kalenterivuosi,MONTH(syyssu1+26)=9),syyssu1+26,\"\"),IF(AND(YEAR(syyssu1+33)=Kalenterivuosi,MONTH(syyssu1+33)=9),syyssu1+33,\"\"))","v":"2022-09-30"},{"$f":"IF(DAY(syyssu1)=1,IF(AND(YEAR(syyssu1+27)=Kalenterivuosi,MONTH(syyssu1+27)=9),syyssu1+27,\"\"),IF(AND(YEAR(syyssu1+34)=Kalenterivuosi,MONTH(syyssu1+34)=9),syyssu1+34,\"\"))","v":""},{"$f":"IF(DAY(syyssu1)=1,IF(AND(YEAR(syyssu1+28)=Kalenterivuosi,MONTH(syyssu1+28)=9),syyssu1+28,\"\"),IF(AND(YEAR(syyssu1+35)=Kalenterivuosi,MONTH(syyssu1+35)=9),syyssu1+35,\"\"))","v":""},null,{"$f":"IF(DAY(lokasu1)=1,IF(AND(YEAR(lokasu1+22)=Kalenterivuosi,MONTH(lokasu1+22)=10),lokasu1+22,\"\"),IF(AND(YEAR(lokasu1+29)=Kalenterivuosi,MONTH(lokasu1+29)=10),lokasu1+29,\"\"))","v":"2022-10-24"},{"$f":"IF(DAY(lokasu1)=1,IF(AND(YEAR(lokasu1+23)=Kalenterivuosi,MONTH(lokasu1+23)=10),lokasu1+23,\"\"),IF(AND(YEAR(lokasu1+30)=Kalenterivuosi,MONTH(lokasu1+30)=10),lokasu1+30,\"\"))","v":"2022-10-25"},{"$f":"IF(DAY(lokasu1)=1,IF(AND(YEAR(lokasu1+24)=Kalenterivuosi,MONTH(lokasu1+24)=10),lokasu1+24,\"\"),IF(AND(YEAR(lokasu1+31)=Kalenterivuosi,MONTH(lokasu1+31)=10),lokasu1+31,\"\"))","v":"2022-10-26"},{"$f":"IF(DAY(lokasu1)=1,IF(AND(YEAR(lokasu1+25)=Kalenterivuosi,MONTH(lokasu1+25)=10),lokasu1+25,\"\"),IF(AND(YEAR(lokasu1+32)=Kalenterivuosi,MONTH(lokasu1+32)=10),lokasu1+32,\"\"))","v":"2022-10-27"},{"$f":"IF(DAY(lokasu1)=1,IF(AND(YEAR(lokasu1+26)=Kalenterivuosi,MONTH(lokasu1+26)=10),lokasu1+26,\"\"),IF(AND(YEAR(lokasu1+33)=Kalenterivuosi,MONTH(lokasu1+33)=10),lokasu1+33,\"\"))","v":"2022-10-28"},{"$f":"IF(DAY(lokasu1)=1,IF(AND(YEAR(lokasu1+27)=Kalenterivuosi,MONTH(lokasu1+27)=10),lokasu1+27,\"\"),IF(AND(YEAR(lokasu1+34)=Kalenterivuosi,MONTH(lokasu1+34)=10),lokasu1+34,\"\"))","v":"2022-10-29"},{"$f":"IF(DAY(lokasu1)=1,IF(AND(YEAR(lokasu1+28)=Kalenterivuosi,MONTH(lokasu1+28)=10),lokasu1+28,\"\"),IF(AND(YEAR(lokasu1+35)=Kalenterivuosi,MONTH(lokasu1+35)=10),lokasu1+35,\"\"))","v":"2022-10-30"},{"$nulls":3},"Postinumero, postitoimipaikka"]
[null,null,{"$f":"IF(DAY(syyssu1)=1,IF(AND(YEAR(syyssu1+29)=Kalenterivuosi,MONTH(syyssu1+29)=9),syyssu1+29,\"\"),IF(AND(YEAR(syyssu1+36)=Kalenterivuosi,MONTH(syyssu1+36)=9),syyssu1+36,\"\"))","v":""},{"$f":"IF(DAY(syyssu1)=1,IF(AND(YEAR(syyssu1+30)=Kalenterivuosi,MONTH(syyssu1+30)=9),syyssu1+30,\"\"),IF(AND(YEAR(syyssu1+37)=Kalenterivuosi,MONTH(syyssu1+37)=9),syyssu1+37,\"\"))","v":""},{"$f":"IF(DAY(syyssu1)=1,IF(AND(YEAR(syyssu1+31)=Kalenterivuosi,MONTH(syyssu1+31)=9),syyssu1+31,\"\"),IF(AND(YEAR(syyssu1+38)=Kalenterivuosi,MONTH(syyssu1+38)=9),syyssu1+38,\"\"))","v":""},{"$f":"IF(DAY(syyssu1)=1,IF(AND(YEAR(syyssu1+32)=Kalenterivuosi,MONTH(syyssu1+32)=9),syyssu1+32,\"\"),IF(AND(YEAR(syyssu1+39)=Kalenterivuosi,MONTH(syyssu1+39)=9),syyssu1+39,\"\"))","v":""},{"$f":"IF(DAY(syyssu1)=1,IF(AND(YEAR(syyssu1+33)=Kalenterivuosi,MONTH(syyssu1+33)=9),syyssu1+33,\"\"),IF(AND(YEAR(syyssu1+40)=Kalenterivuosi,MONTH(syyssu1+40)=9),syyssu1+40,\"\"))","v":""},{"$f":"IF(DAY(syyssu1)=1,IF(AND(YEAR(syyssu1+34)=Kalenterivuosi,MONTH(syyssu1+34)=9),syyssu1+34,\"\"),IF(AND(YEAR(syyssu1+41)=Kalenterivuosi,MONTH(syyssu1+41)=9),syyssu1+41,\"\"))","v":""},{"$f":"IF(DAY(syyssu1)=1,IF(AND(YEAR(syyssu1+35)=Kalenterivuosi,MONTH(syyssu1+35)=9),syyssu1+35,\"\"),IF(AND(YEAR(syyssu1+42)=Kalenterivuosi,MONTH(syyssu1+42)=9),syyssu1+42,\"\"))","v":""},null,{"$f":"IF(DAY(lokasu1)=1,IF(AND(YEAR(lokasu1+29)=Kalenterivuosi,MONTH(lokasu1+29)=10),lokasu1+29,\"\"),IF(AND(YEAR(lokasu1+36)=Kalenterivuosi,MONTH(lokasu1+36)=10),lokasu1+36,\"\"))","v":"2022-10-31"},{"$f":"IF(DAY(lokasu1)=1,IF(AND(YEAR(lokasu1+30)=Kalenterivuosi,MONTH(lokasu1+30)=10),lokasu1+30,\"\"),IF(AND(YEAR(lokasu1+37)=Kalenterivuosi,MONTH(lokasu1+37)=10),lokasu1+37,\"\"))","v":""},{"$f":"IF(DAY(lokasu1)=1,IF(AND(YEAR(lokasu1+31)=Kalenterivuosi,MONTH(lokasu1+31)=10),lokasu1+31,\"\"),IF(AND(YEAR(lokasu1+38)=Kalenterivuosi,MONTH(lokasu1+38)=10),lokasu1+38,\"\"))","v":""},{"$f":"IF(DAY(lokasu1)=1,IF(AND(YEAR(lokasu1+32)=Kalenterivuosi,MONTH(lokasu1+32)=10),lokasu1+32,\"\"),IF(AND(YEAR(lokasu1+39)=Kalenterivuosi,MONTH(lokasu1+39)=10),lokasu1+39,\"\"))","v":""},{"$f":"IF(DAY(lokasu1)=1,IF(AND(YEAR(lokasu1+33)=Kalenterivuosi,MONTH(lokasu1+33)=10),lokasu1+33,\"\"),IF(AND(YEAR(lokasu1+40)=Kalenterivuosi,MONTH(lokasu1+40)=10),lokasu1+40,\"\"))","v":""},{"$f":"IF(DAY(lokasu1)=1,IF(AND(YEAR(lokasu1+34)=Kalenterivuosi,MONTH(lokasu1+34)=10),lokasu1+34,\"\"),IF(AND(YEAR(lokasu1+41)=Kalenterivuosi,MONTH(lokasu1+41)=10),lokasu1+41,\"\"))","v":""},{"$f":"IF(DAY(lokasu1)=1,IF(AND(YEAR(lokasu1+35)=Kalenterivuosi,MONTH(lokasu1+35)=10),lokasu1+35,\"\"),IF(AND(YEAR(lokasu1+42)=Kalenterivuosi,MONTH(lokasu1+42)=10),lokasu1+42,\"\"))","v":""}]
["Kirjoita yrityksen puhelinnumero soluun U47",{"$nulls":19},"Puhelinnumero"]
["Marraskuun otsikko on solussa C48 ja joulukuun solussa K48. Kirjoita sähköpostiosoite soluun U48",null,"MARRASKUU",{"$nulls":7},"JOULUKUU",{"$nulls":9},"Sähköposti"]
["Marraskuun kalenteritaulukko on soluissa C49–I55 ja joulukuun kalenteri soluissa K49–Q55. Seuraava ohje on solussa A51",null,"MA","TI","KE","TO","PE","LA","SU",null,"MA","TI","KE","TO","PE","LA","SU",{"$nulls":3},"Sivusto"]
[null,null,{"$f":"IF(DAY(marrassu1)=1,\"\",IF(AND(YEAR(marrassu1+1)=Kalenterivuosi,MONTH(marrassu1+1)=11),marrassu1+1,\"\"))","v":""},{"$f":"IF(DAY(marrassu1)=1,\"\",IF(AND(YEAR(marrassu1+2)=Kalenterivuosi,MONTH(marrassu1+2)=11),marrassu1+2,\"\"))","v":"2022-11-01"},{"$f":"IF(DAY(marrassu1)=1,\"\",IF(AND(YEAR(marrassu1+3)=Kalenterivuosi,MONTH(marrassu1+3)=11),marrassu1+3,\"\"))","v":"2022-11-02"},{"$f":"IF(DAY(marrassu1)=1,\"\",IF(AND(YEAR(marrassu1+4)=Kalenterivuosi,MONTH(marrassu1+4)=11),marrassu1+4,\"\"))","v":"2022-11-03"},{"$f":"IF(DAY(marrassu1)=1,\"\",IF(AND(YEAR(marrassu1+5)=Kalenterivuosi,MONTH(marrassu1+5)=11),marrassu1+5,\"\"))","v":"2022-11-04"},{"$f":"IF(DAY(marrassu1)=1,\"\",IF(AND(YEAR(marrassu1+6)=Kalenterivuosi,MONTH(marrassu1+6)=11),marrassu1+6,\"\"))","v":"2022-11-05"},{"$f":"IF(DAY(marrassu1)=1,IF(AND(YEAR(marrassu1)=Kalenterivuosi,MONTH(marrassu1)=11),marrassu1,\"\"),IF(AND(YEAR(marrassu1+7)=Kalenterivuosi,MONTH(marrassu1+7)=11),marrassu1+7,\"\"))","v":"2022-11-06"},null,{"$f":"IF(DAY(joulusu1)=1,\"\",IF(AND(YEAR(joulusu1+1)=Kalenterivuosi,MONTH(joulusu1+1)=12),joulusu1+1,\"\"))","v":""},{"$f":"IF(DAY(joulusu1)=1,\"\",IF(AND(YEAR(joulusu1+2)=Kalenterivuosi,MONTH(joulusu1+2)=12),joulusu1+2,\"\"))","v":""},{"$f":"IF(DAY(joulusu1)=1,\"\",IF(AND(YEAR(joulusu1+3)=Kalenterivuosi,MONTH(joulusu1+3)=12),joulusu1+3,\"\"))","v":""},{"$f":"IF(DAY(joulusu1)=1,\"\",IF(AND(YEAR(joulusu1+4)=Kalenterivuosi,MONTH(joulusu1+4)=12),joulusu1+4,\"\"))","v":"2022-12-01"},{"$f":"IF(DAY(joulusu1)=1,\"\",IF(AND(YEAR(joulusu1+5)=Kalenterivuosi,MONTH(joulusu1+5)=12),joulusu1+5,\"\"))","v":"2022-12-02"},{"$f":"IF(DAY(joulusu1)=1,\"\",IF(AND(YEAR(joulusu1+6)=Kalenterivuosi,MONTH(joulusu1+6)=12),joulusu1+6,\"\"))","v":"2022-12-03"},{"$f":"IF(DAY(joulusu1)=1,IF(AND(YEAR(joulusu1)=Kalenterivuosi,MONTH(joulusu1)=12),joulusu1,\"\"),IF(AND(YEAR(joulusu1+7)=Kalenterivuosi,MONTH(joulusu1+7)=12),joulusu1+7,\"\"))","v":"2022-12-04"}]
["Lisää yrityksen logo soluun U51",null,{"$f":"IF(DAY(marrassu1)=1,IF(AND(YEAR(marrassu1+1)=Kalenterivuosi,MONTH(marrassu1+1)=11),marrassu1+1,\"\"),IF(AND(YEAR(marrassu1+8)=Kalenterivuosi,MONTH(marrassu1+8)=11),marrassu1+8,\"\"))","v":"2022-11-07"},{"$f":"IF(DAY(marrassu1)=1,IF(AND(YEAR(marrassu1+2)=Kalenterivuosi,MONTH(marrassu1+2)=11),marrassu1+2,\"\"),IF(AND(YEAR(marrassu1+9)=Kalenterivuosi,MONTH(marrassu1+9)=11),marrassu1+9,\"\"))","v":"2022-11-08"},{"$f":"IF(DAY(marrassu1)=1,IF(AND(YEAR(marrassu1+3)=Kalenterivuosi,MONTH(marrassu1+3)=11),marrassu1+3,\"\"),IF(AND(YEAR(marrassu1+10)=Kalenterivuosi,MONTH(marrassu1+10)=11),marrassu1+10,\"\"))","v":"2022-11-09"},{"$f":"IF(DAY(marrassu1)=1,IF(AND(YEAR(marrassu1+4)=Kalenterivuosi,MONTH(marrassu1+4)=11),marrassu1+4,\"\"),IF(AND(YEAR(marrassu1+11)=Kalenterivuosi,MONTH(marrassu1+11)=11),marrassu1+11,\"\"))","v":"2022-11-10"},{"$f":"IF(DAY(marrassu1)=1,IF(AND(YEAR(marrassu1+5)=Kalenterivuosi,MONTH(marrassu1+5)=11),marrassu1+5,\"\"),IF(AND(YEAR(marrassu1+12)=Kalenterivuosi,MONTH(marrassu1+12)=11),marrassu1+12,\"\"))","v":"2022-11-11"},{"$f":"IF(DAY(marrassu1)=1,IF(AND(YEAR(marrassu1+6)=Kalenterivuosi,MONTH(marrassu1+6)=11),marrassu1+6,\"\"),IF(AND(YEAR(marrassu1+13)=Kalenterivuosi,MONTH(marrassu1+13)=11),marrassu1+13,\"\"))","v":"2022-11-12"},{"$f":"IF(DAY(marrassu1)=1,IF(AND(YEAR(marrassu1+7)=Kalenterivuosi,MONTH(marrassu1+7)=11),marrassu1+7,\"\"),IF(AND(YEAR(marrassu1+14)=Kalenterivuosi,MONTH(marrassu1+14)=11),marrassu1+14,\"\"))","v":"2022-11-13"},null,{"$f":"IF(DAY(joulusu1)=1,IF(AND(YEAR(joulusu1+1)=Kalenterivuosi,MONTH(joulusu1+1)=12),joulusu1+1,\"\"),IF(AND(YEAR(joulusu1+8)=Kalenterivuosi,MONTH(joulusu1+8)=12),joulusu1+8,\"\"))","v":"2022-12-05"},{"$f":"IF(DAY(joulusu1)=1,IF(AND(YEAR(joulusu1+2)=Kalenterivuosi,MONTH(joulusu1+2)=12),joulusu1+2,\"\"),IF(AND(YEAR(joulusu1+9)=Kalenterivuosi,MONTH(joulusu1+9)=12),joulusu1+9,\"\"))","v":"2022-12-06"},{"$f":"IF(DAY(joulusu1)=1,IF(AND(YEAR(joulusu1+3)=Kalenterivuosi,MONTH(joulusu1+3)=12),joulusu1+3,\"\"),IF(AND(YEAR(joulusu1+10)=Kalenterivuosi,MONTH(joulusu1+10)=12),joulusu1+10,\"\"))","v":"2022-12-07"},{"$f":"IF(DAY(joulusu1)=1,IF(AND(YEAR(joulusu1+4)=Kalenterivuosi,MONTH(joulusu1+4)=12),joulusu1+4,\"\"),IF(AND(YEAR(joulusu1+11)=Kalenterivuosi,MONTH(joulusu1+11)=12),joulusu1+11,\"\"))","v":"2022-12-08"},{"$f":"IF(DAY(joulusu1)=1,IF(AND(YEAR(joulusu1+5)=Kalenterivuosi,MONTH(joulusu1+5)=12),joulusu1+5,\"\"),IF(AND(YEAR(joulusu1+12)=Kalenterivuosi,MONTH(joulusu1+12)=12),joulusu1+12,\"\"))","v":"2022-12-09"},{"$f":"IF(DAY(joulusu1)=1,IF(AND(YEAR(joulusu1+6)=Kalenterivuosi,MONTH(joulusu1+6)=12),joulusu1+6,\"\"),IF(AND(YEAR(joulusu1+13)=Kalenterivuosi,MONTH(joulusu1+13)=12),joulusu1+13,\"\"))","v":"2022-12-10"},{"$f":"IF(DAY(joulusu1)=1,IF(AND(YEAR(joulusu1+7)=Kalenterivuosi,MONTH(joulusu1+7)=12),joulusu1+7,\"\"),IF(AND(YEAR(joulusu1+14)=Kalenterivuosi,MONTH(joulusu1+14)=12),joulusu1+14,\"\"))","v":"2022-12-11"},{"$nulls":3},"Logon paikkamerkki on tässä solussa."]
[null,null,{"$f":"IF(DAY(marrassu1)=1,IF(AND(YEAR(marrassu1+8)=Kalenterivuosi,MONTH(marrassu1+8)=11),marrassu1+8,\"\"),IF(AND(YEAR(marrassu1+15)=Kalenterivuosi,MONTH(marrassu1+15)=11),marrassu1+15,\"\"))","v":"2022-11-14"},{"$f":"IF(DAY(marrassu1)=1,IF(AND(YEAR(marrassu1+9)=Kalenterivuosi,MONTH(marrassu1+9)=11),marrassu1+9,\"\"),IF(AND(YEAR(marrassu1+16)=Kalenterivuosi,MONTH(marrassu1+16)=11),marrassu1+16,\"\"))","v":"2022-11-15"},{"$f":"IF(DAY(marrassu1)=1,IF(AND(YEAR(marrassu1+10)=Kalenterivuosi,MONTH(marrassu1+10)=11),marrassu1+10,\"\"),IF(AND(YEAR(marrassu1+17)=Kalenterivuosi,MONTH(marrassu1+17)=11),marrassu1+17,\"\"))","v":"2022-11-16"},{"$f":"IF(DAY(marrassu1)=1,IF(AND(YEAR(marrassu1+11)=Kalenterivuosi,MONTH(marrassu1+11)=11),marrassu1+11,\"\"),IF(AND(YEAR(marrassu1+18)=Kalenterivuosi,MONTH(marrassu1+18)=11),marrassu1+18,\"\"))","v":"2022-11-17"},{"$f":"IF(DAY(marrassu1)=1,IF(AND(YEAR(marrassu1+12)=Kalenterivuosi,MONTH(marrassu1+12)=11),marrassu1+12,\"\"),IF(AND(YEAR(marrassu1+19)=Kalenterivuosi,MONTH(marrassu1+19)=11),marrassu1+19,\"\"))","v":"2022-11-18"},{"$f":"IF(DAY(marrassu1)=1,IF(AND(YEAR(marrassu1+13)=Kalenterivuosi,MONTH(marrassu1+13)=11),marrassu1+13,\"\"),IF(AND(YEAR(marrassu1+20)=Kalenterivuosi,MONTH(marrassu1+20)=11),marrassu1+20,\"\"))","v":"2022-11-19"},{"$f":"IF(DAY(marrassu1)=1,IF(AND(YEAR(marrassu1+14)=Kalenterivuosi,MONTH(marrassu1+14)=11),marrassu1+14,\"\"),IF(AND(YEAR(marrassu1+21)=Kalenterivuosi,MONTH(marrassu1+21)=11),marrassu1+21,\"\"))","v":"2022-11-20"},null,{"$f":"IF(DAY(joulusu1)=1,IF(AND(YEAR(joulusu1+8)=Kalenterivuosi,MONTH(joulusu1+8)=12),joulusu1+8,\"\"),IF(AND(YEAR(joulusu1+15)=Kalenterivuosi,MONTH(joulusu1+15)=12),joulusu1+15,\"\"))","v":"2022-12-12"},{"$f":"IF(DAY(joulusu1)=1,IF(AND(YEAR(joulusu1+9)=Kalenterivuosi,MONTH(joulusu1+9)=12),joulusu1+9,\"\"),IF(AND(YEAR(joulusu1+16)=Kalenterivuosi,MONTH(joulusu1+16)=12),joulusu1+16,\"\"))","v":"2022-12-13"},{"$f":"IF(DAY(joulusu1)=1,IF(AND(YEAR(joulusu1+10)=Kalenterivuosi,MONTH(joulusu1+10)=12),joulusu1+10,\"\"),IF(AND(YEAR(joulusu1+17)=Kalenterivuosi,MONTH(joulusu1+17)=12),joulusu1+17,\"\"))","v":"2022-12-14"},{"$f":"IF(DAY(joulusu1)=1,IF(AND(YEAR(joulusu1+11)=Kalenterivuosi,MONTH(joulusu1+11)=12),joulusu1+11,\"\"),IF(AND(YEAR(joulusu1+18)=Kalenterivuosi,MONTH(joulusu1+18)=12),joulusu1+18,\"\"))","v":"2022-12-15"},{"$f":"IF(DAY(joulusu1)=1,IF(AND(YEAR(joulusu1+12)=Kalenterivuosi,MONTH(joulusu1+12)=12),joulusu1+12,\"\"),IF(AND(YEAR(joulusu1+19)=Kalenterivuosi,MONTH(joulusu1+19)=12),joulusu1+19,\"\"))","v":"2022-12-16"},{"$f":"IF(DAY(joulusu1)=1,IF(AND(YEAR(joulusu1+13)=Kalenterivuosi,MONTH(joulusu1+13)=12),joulusu1+13,\"\"),IF(AND(YEAR(joulusu1+20)=Kalenterivuosi,MONTH(joulusu1+20)=12),joulusu1+20,\"\"))","v":"2022-12-17"},{"$f":"IF(DAY(joulusu1)=1,IF(AND(YEAR(joulusu1+14)=Kalenterivuosi,MONTH(joulusu1+14)=12),joulusu1+14,\"\"),IF(AND(YEAR(joulusu1+21)=Kalenterivuosi,MONTH(joulusu1+21)=12),joulusu1+21,\"\"))","v":"2022-12-18"}]
[null,null,{"$f":"IF(DAY(marrassu1)=1,IF(AND(YEAR(marrassu1+15)=Kalenterivuosi,MONTH(marrassu1+15)=11),marrassu1+15,\"\"),IF(AND(YEAR(marrassu1+22)=Kalenterivuosi,MONTH(marrassu1+22)=11),marrassu1+22,\"\"))","v":"2022-11-21"},{"$f":"IF(DAY(marrassu1)=1,IF(AND(YEAR(marrassu1+16)=Kalenterivuosi,MONTH(marrassu1+16)=11),marrassu1+16,\"\"),IF(AND(YEAR(marrassu1+23)=Kalenterivuosi,MONTH(marrassu1+23)=11),marrassu1+23,\"\"))","v":"2022-11-22"},{"$f":"IF(DAY(marrassu1)=1,IF(AND(YEAR(marrassu1+17)=Kalenterivuosi,MONTH(marrassu1+17)=11),marrassu1+17,\"\"),IF(AND(YEAR(marrassu1+24)=Kalenterivuosi,MONTH(marrassu1+24)=11),marrassu1+24,\"\"))","v":"2022-11-23"},{"$f":"IF(DAY(marrassu1)=1,IF(AND(YEAR(marrassu1+18)=Kalenterivuosi,MONTH(marrassu1+18)=11),marrassu1+18,\"\"),IF(AND(YEAR(marrassu1+25)=Kalenterivuosi,MONTH(marrassu1+25)=11),marrassu1+25,\"\"))","v":"2022-11-24"},{"$f":"IF(DAY(marrassu1)=1,IF(AND(YEAR(marrassu1+19)=Kalenterivuosi,MONTH(marrassu1+19)=11),marrassu1+19,\"\"),IF(AND(YEAR(marrassu1+26)=Kalenterivuosi,MONTH(marrassu1+26)=11),marrassu1+26,\"\"))","v":"2022-11-25"},{"$f":"IF(DAY(marrassu1)=1,IF(AND(YEAR(marrassu1+20)=Kalenterivuosi,MONTH(marrassu1+20)=11),marrassu1+20,\"\"),IF(AND(YEAR(marrassu1+27)=Kalenterivuosi,MONTH(marrassu1+27)=11),marrassu1+27,\"\"))","v":"2022-11-26"},{"$f":"IF(DAY(marrassu1)=1,IF(AND(YEAR(marrassu1+21)=Kalenterivuosi,MONTH(marrassu1+21)=11),marrassu1+21,\"\"),IF(AND(YEAR(marrassu1+28)=Kalenterivuosi,MONTH(marrassu1+28)=11),marrassu1+28,\"\"))","v":"2022-11-27"},null,{"$f":"IF(DAY(joulusu1)=1,IF(AND(YEAR(joulusu1+15)=Kalenterivuosi,MONTH(joulusu1+15)=12),joulusu1+15,\"\"),IF(AND(YEAR(joulusu1+22)=Kalenterivuosi,MONTH(joulusu1+22)=12),joulusu1+22,\"\"))","v":"2022-12-19"},{"$f":"IF(DAY(joulusu1)=1,IF(AND(YEAR(joulusu1+16)=Kalenterivuosi,MONTH(joulusu1+16)=12),joulusu1+16,\"\"),IF(AND(YEAR(joulusu1+23)=Kalenterivuosi,MONTH(joulusu1+23)=12),joulusu1+23,\"\"))","v":"2022-12-20"},{"$f":"IF(DAY(joulusu1)=1,IF(AND(YEAR(joulusu1+17)=Kalenterivuosi,MONTH(joulusu1+17)=12),joulusu1+17,\"\"),IF(AND(YEAR(joulusu1+24)=Kalenterivuosi,MONTH(joulusu1+24)=12),joulusu1+24,\"\"))","v":"2022-12-21"},{"$f":"IF(DAY(joulusu1)=1,IF(AND(YEAR(joulusu1+18)=Kalenterivuosi,MONTH(joulusu1+18)=12),joulusu1+18,\"\"),IF(AND(YEAR(joulusu1+25)=Kalenterivuosi,MONTH(joulusu1+25)=12),joulusu1+25,\"\"))","v":"2022-12-22"},{"$f":"IF(DAY(joulusu1)=1,IF(AND(YEAR(joulusu1+19)=Kalenterivuosi,MONTH(joulusu1+19)=12),joulusu1+19,\"\"),IF(AND(YEAR(joulusu1+26)=Kalenterivuosi,MONTH(joulusu1+26)=12),joulusu1+26,\"\"))","v":"2022-12-23"},{"$f":"IF(DAY(joulusu1)=1,IF(AND(YEAR(joulusu1+20)=Kalenterivuosi,MONTH(joulusu1+20)=12),joulusu1+20,\"\"),IF(AND(YEAR(joulusu1+27)=Kalenterivuosi,MONTH(joulusu1+27)=12),joulusu1+27,\"\"))","v":"2022-12-24"},{"$f":"IF(DAY(joulusu1)=1,IF(AND(YEAR(joulusu1+21)=Kalenterivuosi,MONTH(joulusu1+21)=12),joulusu1+21,\"\"),IF(AND(YEAR(joulusu1+28)=Kalenterivuosi,MONTH(joulusu1+28)=12),joulusu1+28,\"\"))","v":"2022-12-25"}]
[null,null,{"$f":"IF(DAY(marrassu1)=1,IF(AND(YEAR(marrassu1+22)=Kalenterivuosi,MONTH(marrassu1+22)=11),marrassu1+22,\"\"),IF(AND(YEAR(marrassu1+29)=Kalenterivuosi,MONTH(marrassu1+29)=11),marrassu1+29,\"\"))","v":"2022-11-28"},{"$f":"IF(DAY(marrassu1)=1,IF(AND(YEAR(marrassu1+23)=Kalenterivuosi,MONTH(marrassu1+23)=11),marrassu1+23,\"\"),IF(AND(YEAR(marrassu1+30)=Kalenterivuosi,MONTH(marrassu1+30)=11),marrassu1+30,\"\"))","v":"2022-11-29"},{"$f":"IF(DAY(marrassu1)=1,IF(AND(YEAR(marrassu1+24)=Kalenterivuosi,MONTH(marrassu1+24)=11),marrassu1+24,\"\"),IF(AND(YEAR(marrassu1+31)=Kalenterivuosi,MONTH(marrassu1+31)=11),marrassu1+31,\"\"))","v":"2022-11-30"},{"$f":"IF(DAY(marrassu1)=1,IF(AND(YEAR(marrassu1+25)=Kalenterivuosi,MONTH(marrassu1+25)=11),marrassu1+25,\"\"),IF(AND(YEAR(marrassu1+32)=Kalenterivuosi,MONTH(marrassu1+32)=11),marrassu1+32,\"\"))","v":""},{"$f":"IF(DAY(marrassu1)=1,IF(AND(YEAR(marrassu1+26)=Kalenterivuosi,MONTH(marrassu1+26)=11),marrassu1+26,\"\"),IF(AND(YEAR(marrassu1+33)=Kalenterivuosi,MONTH(marrassu1+33)=11),marrassu1+33,\"\"))","v":""},{"$f":"IF(DAY(marrassu1)=1,IF(AND(YEAR(marrassu1+27)=Kalenterivuosi,MONTH(marrassu1+27)=11),marrassu1+27,\"\"),IF(AND(YEAR(marrassu1+34)=Kalenterivuosi,MONTH(marrassu1+34)=11),marrassu1+34,\"\"))","v":""},{"$f":"IF(DAY(marrassu1)=1,IF(AND(YEAR(marrassu1+28)=Kalenterivuosi,MONTH(marrassu1+28)=11),marrassu1+28,\"\"),IF(AND(YEAR(marrassu1+35)=Kalenterivuosi,MONTH(marrassu1+35)=11),marrassu1+35,\"\"))","v":""},null,{"$f":"IF(DAY(joulusu1)=1,IF(AND(YEAR(joulusu1+22)=Kalenterivuosi,MONTH(joulusu1+22)=12),joulusu1+22,\"\"),IF(AND(YEAR(joulusu1+29)=Kalenterivuosi,MONTH(joulusu1+29)=12),joulusu1+29,\"\"))","v":"2022-12-26"},{"$f":"IF(DAY(joulusu1)=1,IF(AND(YEAR(joulusu1+23)=Kalenterivuosi,MONTH(joulusu1+23)=12),joulusu1+23,\"\"),IF(AND(YEAR(joulusu1+30)=Kalenterivuosi,MONTH(joulusu1+30)=12),joulusu1+30,\"\"))","v":"2022-12-27"},{"$f":"IF(DAY(joulusu1)=1,IF(AND(YEAR(joulusu1+24)=Kalenterivuosi,MONTH(joulusu1+24)=12),joulusu1+24,\"\"),IF(AND(YEAR(joulusu1+31)=Kalenterivuosi,MONTH(joulusu1+31)=12),joulusu1+31,\"\"))","v":"2022-12-28"},{"$f":"IF(DAY(joulusu1)=1,IF(AND(YEAR(joulusu1+25)=Kalenterivuosi,MONTH(joulusu1+25)=12),joulusu1+25,\"\"),IF(AND(YEAR(joulusu1+32)=Kalenterivuosi,MONTH(joulusu1+32)=12),joulusu1+32,\"\"))","v":"2022-12-29"},{"$f":"IF(DAY(joulusu1)=1,IF(AND(YEAR(joulusu1+26)=Kalenterivuosi,MONTH(joulusu1+26)=12),joulusu1+26,\"\"),IF(AND(YEAR(joulusu1+33)=Kalenterivuosi,MONTH(joulusu1+33)=12),joulusu1+33,\"\"))","v":"2022-12-30"},{"$f":"IF(DAY(joulusu1)=1,IF(AND(YEAR(joulusu1+27)=Kalenterivuosi,MONTH(joulusu1+27)=12),joulusu1+27,\"\"),IF(AND(YEAR(joulusu1+34)=Kalenterivuosi,MONTH(joulusu1+34)=12),joulusu1+34,\"\"))","v":"2022-12-31"},{"$f":"IF(DAY(joulusu1)=1,IF(AND(YEAR(joulusu1+28)=Kalenterivuosi,MONTH(joulusu1+28)=12),joulusu1+28,\"\"),IF(AND(YEAR(joulusu1+35)=Kalenterivuosi,MONTH(joulusu1+35)=12),joulusu1+35,\"\"))","v":""}]
[null,null,{"$f":"IF(DAY(marrassu1)=1,IF(AND(YEAR(marrassu1+29)=Kalenterivuosi,MONTH(marrassu1+29)=11),marrassu1+29,\"\"),IF(AND(YEAR(marrassu1+36)=Kalenterivuosi,MONTH(marrassu1+36)=11),marrassu1+36,\"\"))","v":""},{"$f":"IF(DAY(marrassu1)=1,IF(AND(YEAR(marrassu1+30)=Kalenterivuosi,MONTH(marrassu1+30)=11),marrassu1+30,\"\"),IF(AND(YEAR(marrassu1+37)=Kalenterivuosi,MONTH(marrassu1+37)=11),marrassu1+37,\"\"))","v":""},{"$f":"IF(DAY(marrassu1)=1,IF(AND(YEAR(marrassu1+31)=Kalenterivuosi,MONTH(marrassu1+31)=11),marrassu1+31,\"\"),IF(AND(YEAR(marrassu1+38)=Kalenterivuosi,MONTH(marrassu1+38)=11),marrassu1+38,\"\"))","v":""},{"$f":"IF(DAY(marrassu1)=1,IF(AND(YEAR(marrassu1+32)=Kalenterivuosi,MONTH(marrassu1+32)=11),marrassu1+32,\"\"),IF(AND(YEAR(marrassu1+39)=Kalenterivuosi,MONTH(marrassu1+39)=11),marrassu1+39,\"\"))","v":""},{"$f":"IF(DAY(marrassu1)=1,IF(AND(YEAR(marrassu1+33)=Kalenterivuosi,MONTH(marrassu1+33)=11),marrassu1+33,\"\"),IF(AND(YEAR(marrassu1+40)=Kalenterivuosi,MONTH(marrassu1+40)=11),marrassu1+40,\"\"))","v":""},{"$f":"IF(DAY(marrassu1)=1,IF(AND(YEAR(marrassu1+34)=Kalenterivuosi,MONTH(marrassu1+34)=11),marrassu1+34,\"\"),IF(AND(YEAR(marrassu1+41)=Kalenterivuosi,MONTH(marrassu1+41)=11),marrassu1+41,\"\"))","v":""},{"$f":"IF(DAY(marrassu1)=1,IF(AND(YEAR(marrassu1+35)=Kalenterivuosi,MONTH(marrassu1+35)=11),marrassu1+35,\"\"),IF(AND(YEAR(marrassu1+42)=Kalenterivuosi,MONTH(marrassu1+42)=11),marrassu1+42,\"\"))","v":""},null,{"$f":"IF(DAY(joulusu1)=1,IF(AND(YEAR(joulusu1+29)=Kalenterivuosi,MONTH(joulusu1+29)=12),joulusu1+29,\"\"),IF(AND(YEAR(joulusu1+36)=Kalenterivuosi,MONTH(joulusu1+36)=12),joulusu1+36,\"\"))","v":""},{"$f":"IF(DAY(joulusu1)=1,IF(AND(YEAR(joulusu1+30)=Kalenterivuosi,MONTH(joulusu1+30)=12),joulusu1+30,\"\"),IF(AND(YEAR(joulusu1+37)=Kalenterivuosi,MONTH(joulusu1+37)=12),joulusu1+37,\"\"))","v":""},{"$f":"IF(DAY(joulusu1)=1,IF(AND(YEAR(joulusu1+31)=Kalenterivuosi,MONTH(joulusu1+31)=12),joulusu1+31,\"\"),IF(AND(YEAR(joulusu1+38)=Kalenterivuosi,MONTH(joulusu1+38)=12),joulusu1+38,\"\"))","v":""},{"$f":"IF(DAY(joulusu1)=1,IF(AND(YEAR(joulusu1+32)=Kalenterivuosi,MONTH(joulusu1+32)=12),joulusu1+32,\"\"),IF(AND(YEAR(joulusu1+39)=Kalenterivuosi,MONTH(joulusu1+39)=12),joulusu1+39,\"\"))","v":""},{"$f":"IF(DAY(joulusu1)=1,IF(AND(YEAR(joulusu1+33)=Kalenterivuosi,MONTH(joulusu1+33)=12),joulusu1+33,\"\"),IF(AND(YEAR(joulusu1+40)=Kalenterivuosi,MONTH(joulusu1+40)=12),joulusu1+40,\"\"))","v":""},{"$f":"IF(DAY(joulusu1)=1,IF(AND(YEAR(joulusu1+34)=Kalenterivuosi,MONTH(joulusu1+34)=12),joulusu1+34,\"\"),IF(AND(YEAR(joulusu1+41)=Kalenterivuosi,MONTH(joulusu1+41)=12),joulusu1+41,\"\"))","v":""},{"$f":"IF(DAY(joulusu1)=1,IF(AND(YEAR(joulusu1+35)=Kalenterivuosi,MONTH(joulusu1+35)=12),joulusu1+35,\"\"),IF(AND(YEAR(joulusu1+42)=Kalenterivuosi,MONTH(joulusu1+42)=12),joulusu1+42,\"\"))","v":""}]